Workbook

Sheet Июль 2020 (hidden)
B1: Учет рабочего времени
A3: Номер по порядку | B3: ФИО | C3: Таб № | D3: 1 | E3: 2 | F3: 3 | G3: 4 | H3: 5 | I3: 6 | J3: 7 | K3: 8 | L3: 9 | M3: 10 | N3: 11 | O3: 12 | P3: 13 | Q3: 14 | R3: 15 | S3: Я | T3: Я/Н | U3: Н/Я | V3: Итого отработанно за 1 половину месяца | W3: 16 | X3: 17 | Y3: 18 | Z3: 19 | AA3: 20 | AB3: 21 | AC3: 22 | AD3: 23 | AE3: 24 | AF3: 25 | AG3: 26 | AH3: 27 | AI3: 28 | AJ3: 29 | AK3: 30 | AL3: 31 | AM3: Я | AN3: Я/Н | AO3: Н/Я | AP3: Итого отработанно за 2 половину месяца | AT3: Итого отработанно за месяц | AZ3: к-во не явок,дней (часов) | BA3: Из них по причинам
AQ4: Дней | AT4: часов
AT5: Всего | AV5: из них | BA5: код | BB5: к-во дней часов
AV6: сверурочн | AW6: ночные | AX6: выходныеи празднечные | AY6: Выходные, праздничные | BC6: 31
AR7: Выходных | AS7: Значений
A8: 1 | B8: 2 | C8: 3 | D8: 4 | S8: 5 | V8: 5 | W8: 6 | AM8: 5 | AP8: 7 | AQ8: 8 | AT8: 9 | AV8: 10 | AW8: 11 | AX8: 12 | AY8: 13 | AZ8: 14 | BA8: 15 | BB8: 16
A9: 1 | B9: Агарков А.Г. Слесарь по обслуживанию и ремонту оборудования | C9: 240 | D9: Я/Н | E9: Н/Я | F9: В | G9: Я | H9: Я/Н | I9: Н/Я | J9: В | K9: Я | L9: Я/Н | M9: Н/Я | N9: В | O9: Я | P9: Я/Н | Q9: Н/Я | R9: В | S9: =COUNTIF(D9:R9,"Я") -> 3 | T9: =COUNTIF(D9:R9,"Я/Н") -> 4 | U9: =COUNTIF(D9:R9,"Н/Я") -> 4 | V9: =SUM(S9:U9) -> 11 | W9: Я | X9: Я/Н | Y9: Н/Я | Z9: В | AA9: Я | AB9: Я/Н | AC9: Н/Я | AD9: В | AE9: Я | AF9: Я/Н | AG9: Н/Я | AH9: В | AI9: Я | AJ9: Я/Н | AK9: Н/Я | AL9: В | AM9: =COUNTIF(W9:AL9,"Я") -> 4 | AN9: =COUNTIF(W9:AL9,"Я/Н") -> 4 | AO9: =COUNTIF(W9:AL9,"Н/Я") -> 4 | AP9: =SUM(AM9:AO9) -> 12 | AQ9: =COUNTA((D10:R10),(W10:AL10)) -> 23 | AT9: =SUM(AP10,V10) -> 172.5 | AU9: =V11+AP11 -> 60 | AW9: =V11+AP11 -> 60 | AY9: =COUNTIF((D9:R9),"В")+COUNTIF((W9:AL9),"В") -> 8 | AZ9: =$BC$6-AQ9-AY9 -> 0 | BA9: 0 | BB9: 0 | BC9: =AQ9+AY9-$BC$6 -> 0
D10: 4 | E10: 7.5 | G10: 11.5 | H10: 4 | I10: 7.5 | K10: 11.5 | L10: 4 | M10: 7.5 | O10: 11.5 | P10: 4 | Q10: 7.5 | S10: =COUNTIF(D10:R10,"Я") -> 0 | T10: =COUNTIF(D10:R10,"Я/Н") -> 0 | U10: =COUNTIF(D10:R10,"Н/Я") -> 0 | V10: =SUM(D10:R10) -> 80.5 | W10: 11.5 | X10: 4 | Y10: 7.5 | AA10: 11.5 | AB10: 4 | AC10: 7.5 | AE10: 11.5 | AF10: 4 | AG10: 7.5 | AI10: 11.5 | AJ10: 4 | AK10: 7.5 | AM10: =COUNTIF(W10:AL10,"Я") -> 0 | AN10: =COUNTIF(W10:AL10,"Я/Н") -> 0 | AO10: 0 | AP10: =SUM(W10:AL10) -> 92
D11: 2 | E11: 5.5 | H11: 2 | I11: 5.5 | L11: 2 | M11: 5.5 | P11: 2 | Q11: 5.5 | S11: 0 | T11: 0 | U11: 0 | V11: =SUM(D11:R11) -> 30 | X11: 2 | Y11: 5.5 | AB11: 2 | AC11: 5.5 | AF11: 2 | AG11: 5.5 | AJ11: 2 | AK11: 5.5 | AM11: 0 | AN11: 0 | AO11: 0 | AP11: =SUM(W11:AL11) -> 30
A12: 2 | B12: Алексеев А.С. Слесарь по обслуживанию и ремонту оборудования | C12: 221 | D12: Н/Я | E12: МО | F12: Я | G12: Я/Н | H12: Н/Я | I12: В | J12: Я | K12: Я/Н | L12: Н/Я | M12: В | N12: Я | O12: Я/Н | P12: Н/Я | Q12: В | R12: Я | S12: 4 | T12: 3 | U12: 4 | V12: =SUM(S12:U12) -> 11 | W12: Я/Н | X12: Н/Я | Y12: ОТ | Z12: ОТ | AA12: ОТ | AB12: ОТ | AC12: ОТ | AD12: ОТ | AE12: ОТ | AF12: ОТ | AG12: ОТ | AH12: ОТ | AI12: ОТ | AJ12: ОТ | AK12: ОТ | AL12: ОТ | AM12: 0 | AN12: 1 | AO12: 1 | AP12: =SUM(AM12:AO12) -> 2 | AQ12: =COUNTA((D13:R13),(W13:AL13)) -> 13 | AR12: =COUNTIF(W12:AL12,"В") -> 0 | AS12: =COUNTA(W12:AL12) -> 16 | AT12: =SUM(AP13,V13) -> 99.5 | AU12: =V14+AP14 -> 35.5 | AW12: =V14+AP14 -> 35.5 | AY12: =COUNTIF((D12:R12),"В")+COUNTIF((W12:AL12),"В") -> 3 | AZ12: =$BC$6-AQ12-AY12 -> 15 | BA12: 9 | BB12: 2020-01-14 | BC12: =AQ12+AY12-$BC$6 -> -15
D13: 7.5 | F13: 11.5 | G13: 4 | H13: 7.5 | J13: 11.5 | K13: 4 | L13: 7.5 | N13: 11.5 | O13: 4 | P13: 7.5 | R13: 11.5 | S13: 0 | T13: 0 | U13: 0 | V13: =SUM(D13:R13) -> 88 | W13: 4 | X13: 7.5 | AM13: 0 | AN13: 0 | AO13: 0 | AP13: =SUM(W13:AL13) -> 11.5
D14: 5.5 | G14: 2 | H14: 5.5 | K14: 2 | L14: 5.5 | O14: 2 | P14: 5.5 | S14: 0 | T14: 0 | U14: 0 | V14: =SUM(D14:R14) -> 28 | W14: 2 | X14: 5.5 | AM14: 0 | AN14: 0 | AO14: 0 | AP14: =SUM(W14:AL14) -> 7.5
A15: 3 | B15: Алешкин А.В. Слесарь по обслуживанию и ремонту оборудования | C15: 205 | D15: В | E15: Я | F15: Я/Н | G15: Н/Я | H15: В | I15: Я | J15: Я/Н | K15: Н/Я | L15: В | S15: 2 | T15: 2 | U15: 2 | V15: =SUM(S15:U15) -> 6 | AM15: 0 | AN15: 0 | AO15: 0 | AP15: =SUM(AM15:AO15) -> 0 | AQ15: =COUNTA((D16:R16),(W16:AL16)) -> 6 | AT15: =SUM(AP16,V16) -> 46 | AU15: =V17+AP17 -> 15 | AW15: =V17+AP17 -> 15 | AY15: =COUNTIF((D15:R15),"В")+COUNTIF((W15:AL15),"В") -> 3 | AZ15: =$BC$6-AQ15-AY15 -> 22 | BA15: 0 | BB15: 0 | BC15: =AQ15+AY15-$BC$6 -> -22
E16: 11.5 | F16: 4 | G16: 7.5 | I16: 11.5 | J16: 4 | K16: 7.5 | S16: 0 | T16: 0 | U16: 0 | V16: =SUM(D16:R16) -> 46 | AM16: 0 | AN16: 0 | AO16: 0 | AP16: =SUM(W16:AL16) -> 0
F17: 2 | G17: 5.5 | J17: 2 | K17: 5.5 | S17: 0 | T17: 0 | U17: 0 | V17: =SUM(D17:R17) -> 15 | AM17: 0 | AN17: 0 | AO17: 0 | AP17: =SUM(W17:AL17) -> 0
A18: 4 | B18: Артюгин В.А. Слесарь по обслуживанию и ремонту оборудования | C18: 128 | D18: Н/Я | E18: В | F18: Я | G18: Я/Н | H18: Н/Я | I18: В | J18: Я | K18: Я/Н | L18: Н/Я | M18: В | N18: Я | O18: Я/Н | P18: Н/Я | Q18: В | R18: Я | S18: 4 | T18: 3 | U18: 4 | V18: =SUM(S18:U18) -> 11 | W18: Я/Н | X18: Н/Я | Y18: В | Z18: Я | AA18: Я/Н | AB18: Н/Я | AC18: В | AD18: Я | AE18: Я/Н | AF18: Н/Я | AG18: В | AH18: Я | AI18: Я/Н | AJ18: Н/Я | AK18: В | AL18: Я | AM18: 4 | AN18: 4 | AO18: 4 | AP18: =SUM(AM18:AO18) -> 12 | AQ18: =COUNTA((D19:R19),(W19:AL19)) -> 23 | AR18: =COUNTIF(W18:AL18,"В") -> 4 | AS18: =COUNTA(W18:AL18) -> 16 | AT18: =SUM(AP19,V19) -> 180 | AU18: =V20+AP20 -> 58 | AW18: =V20+AP20 -> 58 | AX18: 8 | AY18: =COUNTIF((D18:R18),"В")+COUNTIF((W18:AL18),"В") -> 8 | AZ18: =$BC$6-AQ18-AY18 -> 0 | BA18: 0 | BB18: 0 | BC18: =AQ18+AY18-$BC$6 -> 0
D19: 7.5 | F19: 11.5 | G19: 4 | H19: 7.5 | J19: 11.5 | K19: 4 | L19: 7.5 | N19: 11.5 | O19: 4 | P19: 7.5 | R19: 11.5 | S19: 0 | T19: 0 | U19: 0 | V19: =SUM(D19:R19) -> 88 | W19: 4 | X19: 7.5 | Z19: 11.5 | AA19: 4 | AB19: 7.5 | AD19: 11.5 | AE19: 4 | AF19: 7.5 | AH19: 11.5 | AI19: 4 | AJ19: 7.5 | AL19: 11.5 | AM19: 0 | AN19: 0 | AO19: 0 | AP19: =SUM(W19:AL19) -> 92
D20: 5.5 | G20: 2 | H20: 5.5 | K20: 2 | L20: 5.5 | O20: 2 | P20: 5.5 | S20: 0 | T20: 0 | U20: 0 | V20: =SUM(D20:R20) -> 28 | W20: 2 | X20: 5.5 | AA20: 2 | AB20: 5.5 | AE20: 2 | AF20: 5.5 | AI20: 2 | AJ20: 5.5 | AM20: 0 | AN20: 0 | AO20: 0 | AP20: =SUM(W20:AL20) -> 30
A21: 5 | B21: Баев О.А. Старший мастер | C21: 143 | D21: В | E21: Я | F21: Я | G21: В | H21: В | I21: Я | J21: Я | K21: Я | L21: Я | M21: Я | N21: В | O21: В | P21: Я | Q21: Я | R21: Я | S21: =COUNTIF(D21:R21,"Я") -> 10 | T21: 0 | U21: 0 | V21: =SUM(S21:U21) -> 10 | W21: Я | X21: Я | Y21: В | Z21: В | AA21: Я | AB21: Я | AC21: Я | AD21: Я | AE21: Я | AF21: В | AG21: В | AH21: Я | AI21: Я | AJ21: Я | AK21: Я | AL21: Я | AM21: 12 | AN21: 0 | AO21: 0 | AP21: =SUM(AM21:AO21) -> 12 | AQ21: =COUNTA((D22:R22),(W22:AL22)) -> 22 | AT21: =SUM(AP22,V22) -> 176 | AU21: =V23+AP23 -> 0 | AW21: =V23+AP23 -> 0 | AY21: =COUNTIF((D21:R21),"В")+COUNTIF((W21:AL21),"В") -> 9 | AZ21: =$BC$6-AQ21-AY21 -> 0 | BA21: 0 | BB21: 0 | BC21: =AQ21+AY21-$BC$6 -> 0
E22: 8 | F22: 8 | I22: 8 | J22: 8 | K22: 8 | L22: 8 | M22: 8 | P22: 8 | Q22: 8 | R22: 8 | S22: 0 | T22: 0 | U22: 0 | V22: =SUM(D22:R22) -> 80 | W22: 8 | X22: 8 | AA22: 8 | AB22: 8 | AC22: 8 | AD22: 8 | AE22: 8 | AH22: 8 | AI22: 8 | AJ22: 8 | AK22: 8 | AL22: 8 | AM22: 0 | AN22: 0 | AO22: 0 | AP22: =SUM(W22:AL22) -> 96
S23: 0 | T23: 0 | U23: 0 | V23: =SUM(D23:R23) -> 0 | AM23: 0 | AN23: 0 | AO23: 0 | AP23: =SUM(W23:AL23) -> 0
A24: 6 | B24: Бузмаков А.Г. Слесарь по обслуживанию и ремонту оборудования | C24: 217 | D24: ОД | E24: ОД | F24: ОД | G24: ОД | H24: ОД | I24: ОД | J24: ОД | K24: ОД | L24: ОД | M24: ОД | N24: ОД | O24: ОД | P24: ОД | Q24: ОД | R24: ОД | S24: 0 | T24: 0 | U24: 0 | V24: =SUM(S24:U24) -> 0 | W24: ОД | X24: Я | Y24: В | Z24: Я | AA24: Я/Н | AB24: Н/Я | AC24: МО | AD24: Я | AE24: Я/Н | AF24: Н/Я | AG24: В | AH24: Я | AI24: Я/Н | AJ24: Н/Я | AK24: В | AL24: Я | AM24: 5 | AN24: 3 | AO24: 3 | AP24: =SUM(AM24:AO24) -> 11 | AQ24: =COUNTA((D25:R25),(W25:AL25)) -> 11 | AR24: =COUNTIF(W24:AL24,"В") -> 3 | AS24: =COUNTA(W24:AL24) -> 16 | AT24: =SUM(AP25,V25) -> 92 | AU24: =V26+AP26 -> 22.5 | AW24: =V26+AP26 -> 22.5 | AX24: 8 | AY24: =COUNTIF((D24:R24),"В")+COUNTIF((W24:AL24),"В") -> 3 | AZ24: 16/1 | BA24: 10 | BB24: 16/1 | BC24: =AQ24+AY24-$BC$6 -> -17
S25: 0 | T25: 0 | U25: 0 | V25: =SUM(D25:R25) -> 0 | X25: 11.5 | Z25: 11.5 | AA25: 4 | AB25: 7.5 | AD25: 11.5 | AE25: 4 | AF25: 7.5 | AH25: 11.5 | AI25: 4 | AJ25: 7.5 | AL25: 11.5 | AM25: 0 | AN25: 0 | AO25: 0 | AP25: =SUM(W25:AL25) -> 92
S26: 0 | T26: 0 | U26: 0 | V26: =SUM(D26:R26) -> 0 | AA26: 2 | AB26: 5.5 | AE26: 2 | AF26: 5.5 | AI26: 2 | AJ26: 5.5 | AM26: 0 | AN26: 0 | AO26: 0 | AP26: =SUM(W26:AL26) -> 22.5
A27: 7 | B27: Бушманов А.В. Слесарь обслуживанию и ремонту оборудования | C27: 152 | D27: В | E27: Я | F27: Я/Н | G27: Н/Я | H27: В | I27: Я | J27: Я/Н | K27: Н/Я | L27: В | M27: Я | N27: Я/Н | O27: Н/Я | P27: В | Q27: Я | R27: Я/Н | S27: 4 | T27: 4 | U27: 3 | V27: =SUM(S27:U27) -> 11 | W27: Н/Я | X27: В | Y27: Я | Z27: Я/Н | AA27: Н/Я | AB27: В | AC27: Я | AD27: Я/Н | AE27: Н/Я | AF27: В | AG27: Я | AH27: Я/Н | AI27: Н/Я | AJ27: В | AK27: Я | AL27: Я/Н | AM27: 4 | AN27: 4 | AO27: 4 | AP27: =SUM(AM27:AO27) -> 12 | AQ27: =COUNTA((D28:R28),(W28:AL28)) -> 23 | AR27: =COUNTIF(W27:AL27,"В") -> 4 | AS27: =COUNTA(W27:AL27) -> 16 | AT27: =SUM(AP28,V28) -> 176.5 | AU27: =V29+AP29 -> 54.5 | AW27: =V29+AP29 -> 54.5 | AX27: 8 | AY27: =COUNTIF((D27:R27),"В")+COUNTIF((W27:AL27),"В") -> 8 | AZ27: =$BC$6-AQ27-AY27 -> 0 | BA27: 0 | BB27: 0 | BC27: =AQ27+AY27-$BC$6 -> 0
E28: 11.5 | F28: 4 | G28: 7.5 | I28: 11.5 | J28: 4 | K28: 7.5 | M28: 11.5 | N28: 4 | O28: 7.5 | Q28: 11.5 | R28: 4 | S28: 0 | T28: 0 | U28: 0 | V28: =SUM(D28:R28) -> 84.5 | W28: 7.5 | Y28: 11.5 | Z28: 4 | AA28: 7.5 | AC28: 11.5 | AD28: 4 | AE28: 7.5 | AG28: 11.5 | AH28: 4 | AI28: 7.5 | AK28: 11.5 | AL28: 4 | AM28: 0 | AN28: 0 | AO28: 0 | AP28: =SUM(W28:AL28) -> 92
F29: 2 | G29: 5.5 | J29: 2 | K29: 5.5 | N29: 2 | O29: 5.5 | R29: 2 | S29: 0 | T29: 0 | U29: 0 | V29: =SUM(D29:R29) -> 24.5 | W29: 5.5 | Z29: 2 | AA29: 5.5 | AD29: 2 | AE29: 5.5 | AH29: 2 | AI29: 5.5 | AL29: 2 | AM29: 0 | AN29: 0 | AO29: 0 | AP29: =SUM(W29:AL29) -> 30
A30: 8 | B30: Васнев И.Ю. Мастер участка | C30: 228 | D30: Н/Я | E30: В | F30: Я | G30: Я/Н | H30: Н/Я | I30: В | J30: Я | K30: Я/Н | L30: Н/Я | M30: В | N30: Я | O30: Я/Н | P30: Н/Я | Q30: В | R30: Я | S30: 4 | T30: 3 | U30: 4 | V30: =SUM(S30:U30) -> 11 | W30: Я/Н | X30: Н/Я | Y30: ОТ | Z30: ОТ | AA30: ОТ | AB30: ОТ | AC30: ОТ | AD30: ОТ | AE30: ОТ | AF30: ОТ | AG30: ОТ | AH30: ОТ | AI30: ОТ | AJ30: ОТ | AK30: ОТ | AL30: ОТ | AM30: 0 | AN30: 1 | AO30: 1 | AP30: =SUM(AM30:AO30) -> 2 | AQ30: =COUNTA((D31:R31),(W31:AL31)) -> 13 | AR30: =COUNTIF(W30:AL30,"В") -> 0 | AS30: =COUNTA(W30:AL30) -> 16 | AT30: =SUM(AP31,V31) -> 99.5 | AU30: =V32+AP32 -> 35.5 | AW30: =V32+AP32 -> 35.5 | AX30: 8 | AY30: =COUNTIF((D30:R30),"В")+COUNTIF((W30:AL30),"В") -> 4 | AZ30: =$BC$6-AQ30-AY30 -> 14 | BA30: 09 | BB30: 14 | BC30: =AQ30+AY30-$BC$6 -> -14
D31: 7.5 | F31: 11.5 | G31: 4 | H31: 7.5 | J31: 11.5 | K31: 4 | L31: 7.5 | N31: 11.5 | O31: 4 | P31: 7.5 | R31: 11.5 | S31: 0 | T31: 0 | U31: 0 | V31: =SUM(D31:R31) -> 88 | W31: 4 | X31: 7.5 | AM31: 0 | AN31: 0 | AO31: 0 | AP31: =SUM(W31:AL31) -> 11.5
D32: 5.5 | G32: 2 | H32: 5.5 | K32: 2 | L32: 5.5 | O32: 2 | P32: 5.5 | S32: 0 | T32: 0 | U32: 0 | V32: =SUM(D32:R32) -> 28 | W32: 2 | X32: 5.5 | AM32: 0 | AN32: 0 | AO32: 0 | AP32: =SUM(W32:AL32) -> 7.5
A33: 9 | B33: Гвоздев А.В. Мастер участка | C33: 220 | D33: ОД | E33: ОД | F33: ОД | G33: ОД | H33: ОД | I33: ОД | J33: ОД | K33: ОД | L33: ОД | M33: ОД | N33: ОД | O33: ОД | P33: ОД | Q33: ОД | R33: ОД | S33: 0 | T33: 0 | U33: 0 | V33: =SUM(S33:U33) -> 0 | W33: Я | X33: МО | Y33: Я | Z33: Я/Н | AA33: Н/Я | AB33: В | AC33: Я | AD33: Я/Н | AE33: Н/Я | AF33: В | AG33: Я | AH33: Я/Н | AI33: Н/Я | AJ33: В | AK33: Я | AL33: Я/Н | AM33: 5 | AN33: 4 | AO33: 3 | AP33: =SUM(AM33:AO33) -> 12 | AQ33: =COUNTA((D34:R34),(W34:AL34)) -> 12 | AR33: =COUNTIF(W33:AL33,"В") -> 3 | AS33: =COUNTA(W33:AL33) -> 16 | AT33: =SUM(AP34,V34) -> 96 | AU33: =V35+AP35 -> 24.5 | AW33: =V35+AP35 -> 24.5 | AX33: 8 | AY33: =COUNTIF((D33:R33),"В")+COUNTIF((W33:AL33),"В") -> 3 | AZ33: 15/1 | BA33: 10 | BB33: 15/1 | BC33: =AQ33+AY33-$BC$6 -> -16
S34: 0 | T34: 0 | U34: 0 | V34: =SUM(D34:R34) -> 0 | W34: 11.5 | Y34: 11.5 | Z34: 4 | AA34: 7.5 | AC34: 11.5 | AD34: 4 | AE34: 7.5 | AG34: 11.5 | AH34: 4 | AI34: 7.5 | AK34: 11.5 | AL34: 4 | AM34: 0 | AN34: 0 | AO34: 0 | AP34: =SUM(W34:AL34) -> 96
S35: 0 | T35: 0 | U35: 0 | V35: =SUM(D35:R35) -> 0 | Z35: 2 | AA35: 5.5 | AD35: 2 | AE35: 5.5 | AH35: 2 | AI35: 5.5 | AL35: 2 | AM35: 0 | AN35: 0 | AO35: 0 | AP35: =SUM(W35:AL35) -> 24.5
A36: 10 | B36: Гринев Е.А. Кладовщик | C36: 74 | D36: Я | E36: Я | F36: В | G36: В | H36: Я | I36: Я | J36: В | K36: В | L36: Я | M36: Я | N36: В | O36: В | P36: Я | Q36: Я | R36: В | S36: 8 | T36: 0 | U36: 0 | V36: =SUM(S36:U36) -> 8 | W36: В | X36: Я | Y36: Я | Z36: В | AA36: В | AB36: Я | AC36: Я | AD36: В | AE36: В | AF36: Я | AG36: Я | AH36: В | AI36: В | AJ36: Я | AK36: Я | AL36: В | AM36: 8 | AN36: 0 | AO36: 0 | AP36: =SUM(AM36:AO36) -> 8 | AQ36: =COUNTA((D37:R37),(W37:AL37)) -> 16 | AR36: =COUNTIF(W36:AL36,"В") -> 8 | AS36: =COUNTA(W36:AL36) -> 16 | AT36: =SUM(AP37,V37) -> 184 | AU36: =V38+AP38 -> 0 | AW36: =V38+AP38 -> 0 | AY36: =COUNTIF((D36:R36),"В")+COUNTIF((W36:AL36),"В") -> 15 | AZ36: =$BC$6-AQ36-AY36 -> 0 | BA36: 10 | BB36: 3 | BC36: =AQ36+AY36-$BC$6 -> 0
D37: 11.5 | E37: 11.5 | H37: 11.5 | I37: 11.5 | L37: 11.5 | M37: 11.5 | P37: 11.5 | Q37: 11.5 | S37: 0 | T37: 0 | U37: 0 | V37: =SUM(D37:R37) -> 92 | X37: 11.5 | Y37: 11.5 | AB37: 11.5 | AC37: 11.5 | AF37: 11.5 | AG37: 11.5 | AJ37: 11.5 | AK37: 11.5 | AM37: 0 | AN37: 0 | AO37: 0 | AP37: =SUM(W37:AL37) -> 92
S38: 0 | T38: 0 | U38: 0 | V38: =SUM(D38:R38) -> 0 | AM38: 0 | AN38: 0 | AO38: =COUNTIF(W38:AL38,"Н/Я") -> 0 | AP38: =SUM(W38:AL38) -> 0
A39: 11 | B39: Громов А.А. Слесарь по обслуживанию и ремонту оборудования | C39: 267 | D39: ДО | E39: ДО | F39: ДО | G39: ДО | H39: ДО | I39: В | J39: Я | K39: Я/Н | L39: Н/Я | M39: В | N39: Я | O39: Я/Н | P39: Н/Я | Q39: В | R39: Я | S39: 3 | T39: 2 | U39: 2 | V39: =SUM(S39:U39) -> 7 | W39: Я/Н | X39: Н/Я | Y39: В | Z39: Я | AA39: Я/Н | AB39: Н/Я | AC39: В | AD39: Я | AE39: Я/Н | AF39: Н/Я | AG39: В | AH39: Я | AI39: Я/Н | AJ39: Н/Я | AK39: В | AL39: Я | AM39: 4 | AN39: 4 | AO39: 4 | AP39: =SUM(AM39:AO39) -> 12 | AQ39: =COUNTA((D40:R40),(W40:AL40)) -> 19 | AR39: =COUNTIF(W39:AL39,"В") -> 4 | AS39: =COUNTA(W39:AL39) -> 16 | AT39: =SUM(AP40,V40) -> 149.5 | AU39: =V41+AP41 -> 45 | AW39: =V41+AP41 -> 45 | AX39: 8 | AY39: =COUNTIF((D39:R39),"В")+COUNTIF((W39:AL39),"В") -> 7 | AZ39: 13 | BA39: 16 | BB39: 13 | BC39: =AQ39+AY39-$BC$6 -> -5
J40: 11.5 | K40: 4 | L40: 7.5 | N40: 11.5 | O40: 4 | P40: 7.5 | R40: 11.5 | S40: 0 | T40: 0 | U40: 0 | V40: =SUM(D40:R40) -> 57.5 | W40: 4 | X40: 7.5 | Z40: 11.5 | AA40: 4 | AB40: 7.5 | AD40: 11.5 | AE40: 4 | AF40: 7.5 | AH40: 11.5 | AI40: 4 | AJ40: 7.5 | AL40: 11.5 | AM40: 0 | AN40: 0 | AO40: 0 | AP40: =SUM(W40:AL40) -> 92
K41: 2 | L41: 5.5 | O41: 2 | P41: 5.5 | S41: 0 | T41: 0 | U41: 0 | V41: =SUM(D41:R41) -> 15 | W41: 2 | X41: 5.5 | AA41: 2 | AB41: 5.5 | AE41: 2 | AF41: 5.5 | AI41: 2 | AJ41: 5.5 | AM41: 0 | AN41: 0 | AO41: 0 | AP41: =SUM(W41:AL41) -> 30
A42: 12 | B42: Деяк Ю.А. Слесарь по обслуживанию и ремонту оборудования | C42: 193 | D42: Я | E42: Я/Н | F42: Н/Я | G42: В | H42: Я | I42: Я/Н | J42: Н/Я | K42: В | L42: Я | M42: Я/Н | N42: Н/Я | O42: В | P42: Я | Q42: Я/Н | R42: Н/Я | S42: 4 | T42: 4 | U42: 4 | V42: =SUM(S42:U42) -> 12 | W42: В | X42: Я | Y42: Я/Н | Z42: Н/Я | AA42: В | AB42: Я | AC42: Я/Н | AD42: Н/Я | AE42: В | AF42: Я | AG42: Я/Н | AH42: Н/Я | AI42: В | AJ42: Я | AK42: Я/Н | AL42: Н/Я | AM42: 4 | AN42: 4 | AO42: 4 | AP42: =SUM(AM42:AO42) -> 12 | AQ42: =COUNTA((D43:R43),(W43:AL43)) -> 24 | AR42: =COUNTIF(W42:AL42,"В") -> 4 | AS42: =COUNTA(W42:AL42) -> 16 | AT42: =SUM(AP43,V43) -> 184 | AU42: =V44+AP44 -> 60 | AW42: =V44+AP44 -> 60 | AX42: 8 | AY42: =COUNTIF((D42:R42),"В")+COUNTIF((W42:AL42),"В") -> 7 | AZ42: =$BC$6-AQ42-AY42 -> 0 | BA42: 0 | BB42: 0 | BC42: =AQ42+AY42-$BC$6 -> 0
D43: 11.5 | E43: 4 | F43: 7.5 | H43: 11.5 | I43: 4 | J43: 7.5 | L43: 11.5 | M43: 4 | N43: 7.5 | P43: 11.5 | Q43: 4 | R43: 7.5 | S43: 0 | T43: 0 | U43: 0 | V43: =SUM(D43:R43) -> 92 | X43: 11.5 | Y43: 4 | Z43: 7.5 | AB43: 11.5 | AC43: 4 | AD43: 7.5 | AF43: 11.5 | AG43: 4 | AH43: 7.5 | AJ43: 11.5 | AK43: 4 | AL43: 7.5 | AM43: 0 | AN43: 0 | AO43: 0 | AP43: =SUM(W43:AL43) -> 92
E44: 2 | F44: 5.5 | I44: 2 | J44: 5.5 | M44: 2 | N44: 5.5 | Q44: 2 | R44: 5.5 | S44: 0 | T44: 0 | U44: 0 | V44: =SUM(D44:R44) -> 30 | Y44: 2 | Z44: 5.5 | AC44: 2 | AD44: 5.5 | AG44: 2 | AH44: 5.5 | AK44: 2 | AL44: 5.5 | AM44: 0 | AN44: 0 | AO44: 0 | AP44: =SUM(W44:AL44) -> 30
A45: 13 | B45: Драчев А.В. Слесарь по обслуживанию и ремонту оборудования | C45: 105 | D45: Я | E45: Я/Н | F45: Н/Я | G45: В | H45: Я | I45: Я/Н | J45: Н/Я | K45: В | L45: Я | M45: Я/Н | N45: Н/Я | O45: В | P45: Я | Q45: Я/Н | R45: Н/Я | S45: 4 | T45: 4 | U45: 4 | V45: =SUM(S45:U45) -> 12 | W45: В | X45: Я | Y45: Я/Н | Z45: Н/Я | AA45: В | AB45: Я | AC45: Я/Н | AD45: Н/Я | AE45: В | AF45: Я | AG45: Я/Н | AH45: Н/Я | AI45: В | AJ45: Я | AK45: Я/Н | AL45: Н/Я | AM45: 4 | AN45: 4 | AO45: 4 | AP45: =SUM(AM45:AO45) -> 12 | AQ45: =COUNTA((D46:R46),(W46:AL46)) -> 24 | AR45: =COUNTIF(W45:AL45,"В") -> 4 | AS45: =COUNTA(W45:AL45) -> 16 | AT45: =SUM(AP46,V46) -> 184 | AU45: =V47+AP47 -> 60 | AW45: =V47+AP47 -> 60 | AX45: 8 | AY45: =COUNTIF((D45:R45),"В")+COUNTIF((W45:AL45),"В") -> 7 | AZ45: =$BC$6-AQ45-AY45 -> 0 | BA45: 0 | BB45: 0 | BC45: =AQ45+AY45-$BC$6 -> 0
D46: 11.5 | E46: 4 | F46: 7.5 | H46: 11.5 | I46: 4 | J46: 7.5 | L46: 11.5 | M46: 4 | N46: 7.5 | P46: 11.5 | Q46: 4 | R46: 7.5 | S46: 0 | T46: 0 | U46: 0 | V46: =SUM(D46:R46) -> 92 | X46: 11.5 | Y46: 4 | Z46: 7.5 | AB46: 11.5 | AC46: 4 | AD46: 7.5 | AF46: 11.5 | AG46: 4 | AH46: 7.5 | AJ46: 11.5 | AK46: 4 | AL46: 7.5 | AM46: 0 | AN46: 0 | AO46: 0 | AP46: =SUM(W46:AL46) -> 92
E47: 2 | F47: 5.5 | I47: 2 | J47: 5.5 | M47: 2 | N47: 5.5 | Q47: 2 | R47: 5.5 | S47: 0 | T47: 0 | U47: 0 | V47: =SUM(D47:R47) -> 30 | Y47: 2 | Z47: 5.5 | AC47: 2 | AD47: 5.5 | AG47: 2 | AH47: 5.5 | AK47: 2 | AL47: 5.5 | AM47: 0 | AN47: 0 | AO47: 0 | AP47: =SUM(W47:AL47) -> 30
A48: 14 | B48: Дюхин С.В. Слесарь по обслуживанию и ремонту оборудования | C48: 208 | D48: Я/Н | E48: Н/Я | F48: В | G48: Я | H48: Я/Н | I48: Н/Я | J48: В | K48: Я | L48: Я/Н | M48: Н/Я | N48: В | O48: Я | P48: Я/Н | Q48: Н/Я | R48: В | S48: 3 | T48: 4 | U48: 4 | V48: =SUM(S48:U48) -> 11 | W48: Я | X48: Я/Н | Y48: Н/Я | Z48: В | AA48: Я | AB48: Я/Н | AC48: Н/Я | AD48: В | AE48: Я | AF48: Я/Н | AG48: Н/Я | AH48: В | AI48: Я | AJ48: Я/Н | AK48: Н/Я | AL48: В | AM48: 4 | AN48: 4 | AO48: 4 | AP48: =SUM(AM48:AO48) -> 12 | AQ48: =COUNTA((D49:R49),(W49:AL49)) -> 23 | AR48: =COUNTIF(W48:AL48,"В") -> 4 | AS48: =COUNTA(W48:AL48) -> 16 | AT48: =V49+AP49 -> 172.5 | AW48: =V50+AP50 -> 60 | AX48: 8 | AY48: =COUNTIF((D48:R48),"В")+COUNTIF((W48:AL48),"В") -> 8 | AZ48: =$BC$6-AQ48-AY48 -> 0 | BA48: 0 | BB48: 0 | BC48: =AQ48+AY48-$BC$6 -> 0
D49: 4 | E49: 7.5 | G49: 11.5 | H49: 4 | I49: 7.5 | K49: 11.5 | L49: 4 | M49: 7.5 | O49: 11.5 | P49: 4 | Q49: 7.5 | S49: 0 | T49: 0 | U49: 0 | V49: =SUM(D49:R49) -> 80.5 | W49: 11.5 | X49: 4 | Y49: 7.5 | AA49: 11.5 | AB49: 4 | AC49: 7.5 | AE49: 11.5 | AF49: 4 | AG49: 7.5 | AI49: 11.5 | AJ49: 4 | AK49: 7.5 | AM49: 0 | AN49: 0 | AO49: 0 | AP49: =SUM(W49:AL49) -> 92
D50: 2 | E50: 5.5 | H50: 2 | I50: 5.5 | L50: 2 | M50: 5.5 | P50: 2 | Q50: 5.5 | S50: 0 | T50: 0 | U50: 0 | V50: =SUM(D50:R50) -> 30 | X50: 2 | Y50: 5.5 | AB50: 2 | AC50: 5.5 | AF50: 2 | AG50: 5.5 | AJ50: 2 | AK50: 5.5 | AM50: 0 | AN50: 0 | AO50: 0 | AP50: =SUM(W50:AL50) -> 30
A51: 15 | B51: Евдокимов М.Ю. Слесарь по обслуживанию и ремонту оборудования | C51: 192 | D51: В | E51: Я | F51: Я/Н | G51: Н/Я | H51: В | I51: Я | J51: Я/Н | K51: Н/Я | L51: В | M51: Я | N51: Я/Н | O51: Н/Я | P51: В | Q51: Я | R51: Я/Н | S51: 4 | T51: 4 | U51: 3 | V51: =SUM(S51:U51) -> 11 | W51: Н/Я | X51: В | Y51: Я | Z51: Я/Н | AA51: Н/Я | AB51: В | AC51: Я | AD51: Я/Н | AE51: Н/Я | AF51: В | AG51: Я | AH51: Я/Н | AI51: Н/Я | AJ51: В | AK51: Я | AL51: В | AM51: 4 | AN51: 3 | AO51: 4 | AP51: =SUM(AM51:AO51) -> 11 | AQ51: =COUNTA((D52:R52),(W52:AL52)) -> 22 | AR51: =COUNTIF(W51:AL51,"В") -> 5 | AS51: =COUNTA(W51:AL51) -> 16 | AT51: =V52+AP52 -> 172.5 | AW51: =V53+AP53 -> 52.5 | AX51: 8 | AY51: =COUNTIF((D51:R51),"В")+COUNTIF((W51:AL51),"В") -> 9 | AZ51: =$BC$6-AQ51-AY51 -> 0 | BA51: 0 | BB51: 0 | BC51: =AQ51+AY51-$BC$6 -> 0
E52: 11.5 | F52: 4 | G52: 7.5 | I52: 11.5 | J52: 4 | K52: 7.5 | M52: 11.5 | N52: 4 | O52: 7.5 | Q52: 11.5 | R52: 4 | S52: 0 | T52: 0 | U52: 0 | V52: =SUM(D52:R52) -> 84.5 | W52: 7.5 | Y52: 11.5 | Z52: 4 | AA52: 7.5 | AC52: 11.5 | AD52: 4 | AE52: 7.5 | AG52: 11.5 | AH52: 4 | AI52: 7.5 | AK52: 11.5 | AM52: 0 | AN52: 0 | AO52: 0 | AP52: =SUM(W52:AL52) -> 88
F53: 2 | G53: 5.5 | J53: 2 | K53: 5.5 | N53: 2 | O53: 5.5 | R53: 2 | S53: 0 | T53: 0 | U53: 0 | V53: =SUM(D53:R53) -> 24.5 | W53: 5.5 | Z53: 2 | AA53: 5.5 | AD53: 2 | AE53: 5.5 | AH53: 2 | AI53: 5.5 | AM53: 0 | AN53: 0 | AO53: 0 | AP53: =SUM(W53:AL53) -> 28
A54: 16 | B54: Завалин И.И. Слесарь по обслуживанию и ремонту оборудования | C54: 75 | D54: Н/Я | E54: В | F54: Я | G54: Я/Н | H54: Н/Я | I54: В | J54: Я | K54: Я/Н | L54: Н/Я | M54: В | N54: Я | O54: Я/Н | P54: Н/Я | Q54: В | R54: Я | S54: 4 | T54: 3 | U54: 4 | V54: =SUM(S54:U54) -> 11 | W54: Я/Н | X54: Н/Я | Y54: В | Z54: Я | AA54: Я/Н | AB54: Н/Я | AC54: В | AD54: Я | AE54: Я/Н | AF54: Н/Я | AG54: В | AH54: Я | AI54: Я/Н | AJ54: Н/Я | AK54: В | AL54: Я | AM54: 4 | AN54: 4 | AO54: 4 | AP54: =SUM(AM54:AO54) -> 12 | AQ54: =COUNTA((D55:R55),(W55:AL55)) -> 23 | AR54: =COUNTIF(W54:AL54,"В") -> 4 | AS54: =COUNTA(W54:AL54) -> 16 | AT54: =V55+AP55 -> 180 | AW54: =V56+AP56 -> 58 | AX54: 8 | AY54: =COUNTIF((D54:R54),"В")+COUNTIF((W54:AL54),"В") -> 8 | AZ54: =$BC$6-AQ54-AY54 -> 0 | BA54: 0 | BB54: 0 | BC54: =AQ54+AY54-$BC$6 -> 0
D55: 7.5 | F55: 11.5 | G55: 4 | H55: 7.5 | J55: 11.5 | K55: 4 | L55: 7.5 | N55: 11.5 | O55: 4 | P55: 7.5 | R55: 11.5 | S55: 0 | T55: 0 | U55: 0 | V55: =SUM(D55:R55) -> 88 | W55: 4 | X55: 7.5 | Z55: 11.5 | AA55: 4 | AB55: 7.5 | AD55: 11.5 | AE55: 4 | AF55: 7.5 | AH55: 11.5 | AI55: 4 | AJ55: 7.5 | AL55: 11.5 | AM55: 0 | AN55: 0 | AO55: 0 | AP55: =SUM(W55:AL55) -> 92
D56: 5.5 | G56: 2 | H56: 5.5 | K56: 2 | L56: 5.5 | O56: 2 | P56: 5.5 | S56: 0 | T56: 0 | U56: 0 | V56: =SUM(D56:R56) -> 28 | W56: 2 | X56: 5.5 | AA56: 2 | AB56: 5.5 | AE56: 2 | AF56: 5.5 | AI56: 2 | AJ56: 5.5 | AM56: 0 | AN56: 0 | AO56: 0 | AP56: =SUM(W56:AL56) -> 30
A57: 17 | B57: Иванов А.Г. Слесарь по обслуживанию и ремонту оборудования | C57: 212 | D57: В | E57: Я | F57: Я/Н | G57: Н/Я | H57: В | I57: Я | J57: Я/Н | K57: Н/Я | L57: В | M57: Я | N57: Я/Н | O57: Н/Я | P57: В | Q57: Я | R57: Я/Н | S57: 4 | T57: 4 | U57: 3 | V57: =SUM(S57:U57) -> 11 | W57: Н/Я | X57: В | Y57: Я | Z57: Я/Н | AA57: Н/Я | AB57: В | AC57: Я | AD57: Я/Н | AE57: Н/Я | AF57: В | AG57: Я | AH57: Я/Н | AI57: Н/Я | AJ57: В | AK57: Я | AL57: Я/Н | AM57: 4 | AN57: 4 | AO57: 4 | AP57: =SUM(AM57:AO57) -> 12 | AQ57: =COUNTA((D58:R58),(W58:AL58)) -> 23 | AT57: =V58+AP58 -> 176.5 | AW57: =V59+AP59 -> 54.5 | AY57: =COUNTIF((D57:R57),"В")+COUNTIF((W57:AL57),"В") -> 8 | AZ57: =$BC$6-AQ57-AY57 -> 0 | BA57: 0 | BB57: 0 | BC57: =AQ57+AY57-$BC$6 -> 0
E58: 11.5 | F58: 4 | G58: 7.5 | I58: 11.5 | J58: 4 | K58: 7.5 | M58: 11.5 | N58: 4 | O58: 7.5 | Q58: 11.5 | R58: 4 | S58: 0 | T58: 0 | U58: 0 | V58: =SUM(D58:R58) -> 84.5 | W58: 7.5 | Y58: 11.5 | Z58: 4 | AA58: 7.5 | AC58: 11.5 | AD58: 4 | AE58: 7.5 | AG58: 11.5 | AH58: 4 | AI58: 7.5 | AK58: 11.5 | AL58: 4 | AM58: 0 | AN58: 0 | AO58: 0 | AP58: =SUM(W58:AL58) -> 92
F59: 2 | G59: 5.5 | J59: 2 | K59: 5.5 | N59: 2 | O59: 5.5 | R59: 2 | S59: 0 | T59: 0 | U59: 0 | V59: =SUM(D59:R59) -> 24.5 | W59: 5.5 | Z59: 2 | AA59: 5.5 | AD59: 2 | AE59: 5.5 | AH59: 2 | AI59: 5.5 | AL59: 2 | AM59: 0 | AN59: 0 | AO59: 0 | AP59: =SUM(W59:AL59) -> 30
A60: 18 | B60: Иванов М.А. Слесарь по обслуживанию и ремонту оборудования | C60: 231 | D60: Н/Я | E60: В | F60: Я | G60: Я/Н | H60: Н/Я | I60: В | J60: Я | K60: Я/Н | L60: Н/Я | M60: В | N60: Я | O60: Я/Н | P60: Н/Я | Q60: В | R60: Я | S60: 4 | T60: 3 | U60: 4 | V60: =SUM(S60:U60) -> 11 | W60: Я/Н | X60: Н/Я | Y60: В | Z60: Я | AA60: Я/Н | AB60: Н/Я | AC60: В | AD60: Я | AE60: Я/Н | AF60: Н/Я | AG60: В | AH60: Я | AI60: Я/Н | AJ60: Н/Я | AK60: В | AL60: Я | AM60: 4 | AN60: 4 | AO60: 4 | AP60: =SUM(AM60:AO60) -> 12 | AQ60: =COUNTA((D61:R61),(W61:AL61)) -> 23 | AT60: =V61+AP61 -> 180 | AW60: =V62+AP62 -> 58 | AY60: =COUNTIF((D60:R60),"В")+COUNTIF((W60:AL60),"В") -> 8 | AZ60: =$BC$6-AQ60-AY60 -> 0 | BA60: 0 | BB60: 0 | BC60: =AQ60+AY60-$BC$6 -> 0
D61: 7.5 | F61: 11.5 | G61: 4 | H61: 7.5 | J61: 11.5 | K61: 4 | L61: 7.5 | N61: 11.5 | O61: 4 | P61: 7.5 | R61: 11.5 | S61: 0 | T61: 0 | U61: 0 | V61: =SUM(D61:R61) -> 88 | W61: 4 | X61: 7.5 | Z61: 11.5 | AA61: 4 | AB61: 7.5 | AD61: 11.5 | AE61: 4 | AF61: 7.5 | AH61: 11.5 | AI61: 4 | AJ61: 7.5 | AL61: 11.5 | AM61: 0 | AN61: 0 | AO61: 0 | AP61: =SUM(W61:AL61) -> 92
D62: 5.5 | G62: 2 | H62: 5.5 | K62: 2 | L62: 5.5 | O62: 2 | P62: 5.5 | S62: 0 | T62: 0 | U62: 0 | V62: =SUM(D62:R62) -> 28 | W62: 2 | X62: 5.5 | AA62: 2 | AB62: 5.5 | AE62: 2 | AF62: 5.5 | AI62: 2 | AJ62: 5.5 | AM62: 0 | AN62: 0 | AO62: 0 | AP62: =SUM(W62:AL62) -> 30
A63: 19 | B63: Ильин А.В. Слесарь по обслуживанию и ремонту оборудования | C63: 118 | D63: ОТ | E63: ОТ | F63: ОТ | G63: ОТ | H63: ОТ | I63: ОТ | J63: ОТ | K63: ОТ | L63: ОТ | M63: ОТ | N63: ОТ | O63: ОТ | P63: ОТ | Q63: ОТ | R63: ОТ | S63: 0 | T63: 0 | U63: 0 | V63: =SUM(S63:U63) -> 0 | W63: ОТ | X63: ОТ | Y63: ОД | Z63: ОД | AA63: ОД | AB63: ОД | AC63: ОД | AD63: ОД | AE63: ОД | AF63: ОД | AG63: ОД | AH63: ОД | AI63: ОД | AJ63: ОД | AK63: ОД | AL63: ОД | AM63: 0 | AN63: 0 | AO63: 0 | AP63: =SUM(AM63:AO63) -> 0 | AQ63: =COUNTA((D64:R64),(W64:AL64)) -> 0 | AR63: =COUNTIF(W63:AL63,"В") -> 0 | AS63: =COUNTA(W63:AL63) -> 16 | AT63: =V64+AP64 -> 0 | AW63: =V65+AP65 -> 0 | AX63: 8 | AY63: =COUNTIF((D63:R63),"В")+COUNTIF((W63:AL63),"В") -> 0 | AZ63: 17/14 | BA63: 09/10 | BB63: 17/14 | BC63: =AQ63+AY63-$BC$6 -> -31
S64: 0 | T64: 0 | U64: 0 | V64: =SUM(D64:R64) -> 0 | AM64: 0 | AN64: 0 | AO64: =COUNTIF(W64:AL64,"Н/Я") -> 0 | AP64: =SUM(W64:AL64) -> 0
S65: =COUNTIF(D65:R65,"Я") -> 0 | T65: =COUNTIF(D65:R65,"Я/Н") -> 0 | U65: =COUNTIF(D65:R65,"Н/Я") -> 0 | V65: =SUM(D65:R65) -> 0 | AM65: =COUNTIF(W65:AL65,"Я") -> 0 | AN65: =COUNTIF(W65:AL65,"Я/Н") -> 0 | AO65: 0 | AP65: =SUM(W65:AL65) -> 0
A66: 20 | B66: Комков Е.В. Слесарь по обслуживанию и ремонту оборудования | C66: 215 | D66: ОД | E66: Я | F66: В | G66: Я | H66: Я/Н | I66: Н/Я | J66: В | K66: Я | L66: Я/Н | M66: Н/Я | N66: В | O66: Я | P66: Я/Н | Q66: Н/Я | R66: МО | S66: 4 | T66: 3 | U66: 3 | V66: =SUM(S66:U66) -> 10 | W66: Я | X66: Я/Н | Y66: Н/Я | Z66: В | AA66: Я | AB66: Я/Н | AC66: Н/Я | AD66: В | AE66: Я | AF66: Я/Н | AG66: Н/Я | AH66: В | AI66: Я | AJ66: Я/Н | AK66: Н/Я | AL66: В | AM66: 4 | AN66: 4 | AO66: 4 | AP66: =SUM(AM66:AO66) -> 12 | AQ66: =COUNTA((D67:R67),(W67:AL67)) -> 22 | AR66: =COUNTIF(W66:AL66,"В") -> 4 | AS66: =COUNTA(W66:AL66) -> 16 | AT66: =V67+AP67 -> 172.5 | AW66: =V68+AP68 -> 52.5 | AX66: 8 | AY66: =COUNTIF((D66:R66),"В")+COUNTIF((W66:AL66),"В") -> 7 | AZ66: 1/1 | BA66: 10 | BB66: 1/1 | BC66: =AQ66+AY66-$BC$6 -> -2
E67: 11.5 | G67: 11.5 | H67: 4 | I67: 7.5 | K67: 11.5 | L67: 4 | M67: 7.5 | O67: 11.5 | P67: 4 | Q67: 7.5 | S67: 0 | T67: 0 | U67: 0 | V67: =SUM(D67:R67) -> 80.5 | W67: 11.5 | X67: 4 | Y67: 7.5 | AA67: 11.5 | AB67: 4 | AC67: 7.5 | AE67: 11.5 | AF67: 4 | AG67: 7.5 | AI67: 11.5 | AJ67: 4 | AK67: 7.5 | AM67: 0 | AN67: 0 | AO67: 0 | AP67: =SUM(W67:AL67) -> 92
H68: 2 | I68: 5.5 | L68: 2 | M68: 5.5 | P68: 2 | Q68: 5.5 | S68: 0 | T68: 0 | U68: 0 | V68: =SUM(D68:R68) -> 22.5 | X68: 2 | Y68: 5.5 | AB68: 2 | AC68: 5.5 | AF68: 2 | AG68: 5.5 | AJ68: 2 | AK68: 5.5 | AM68: 0 | AN68: 0 | AO68: 0 | AP68: =SUM(W68:AL68) -> 30
A69: 21 | B69: Крыжановский В.С. Электрослесарь по обслуживанию и ремонту оборудования | C69: 67 | D69: ОД | E69: ОД | F69: ОД | G69: ОД | H69: ОД | I69: ОД | J69: ОД | K69: ОД | L69: ОД | M69: ОД | N69: ОД | O69: Я/Н | P69: Н/Я | Q69: В | R69: Я | S69: 1 | T69: 1 | U69: 1 | V69: =SUM(S69:U69) -> 3 | W69: Я/Н | X69: Н/Я | Y69: В | Z69: Я | AA69: Я/Н | AB69: Н/Я | AC69: В | AD69: Я | AE69: Я/Н | AF69: Н/Я | AG69: В | AH69: Я | AI69: Я/Н | AJ69: Н/Я | AK69: В | AL69: Я | AM69: 4 | AN69: 4 | AO69: 4 | AP69: =SUM(AM69:AO69) -> 12 | AQ69: =COUNTA((D70:R70),(W70:AL70)) -> 15 | AR69: =COUNTIF(W69:AL69,"В") -> 4 | AS69: =COUNTA(W69:AL69) -> 16 | AT69: =V70+AP70 -> 115 | AW69: =V71+AP71 -> 37.5 | AX69: 8 | AY69: =COUNTIF((D69:R69),"В")+COUNTIF((W69:AL69),"В") -> 5 | AZ69: =$BC$6-AQ69-AY69 -> 11 | BA69: 10 | BB69: 11 | BC69: =AQ69+AY69-$BC$6 -> -11
O70: 4 | P70: 7.5 | R70: 11.5 | S70: 0 | T70: 0 | U70: 0 | V70: =SUM(D70:R70) -> 23 | W70: 4 | X70: 7.5 | Z70: 11.5 | AA70: 4 | AB70: 7.5 | AD70: 11.5 | AE70: 4 | AF70: 7.5 | AH70: 11.5 | AI70: 4 | AJ70: 7.5 | AL70: 11.5 | AM70: 0 | AN70: 0 | AO70: 0 | AP70: =SUM(W70:AL70) -> 92
O71: 2 | P71: 5.5 | S71: 0 | T71: 0 | U71: 0 | V71: =SUM(D71:R71) -> 7.5 | W71: 2 | X71: 5.5 | AA71: 2 | AB71: 5.5 | AE71: 2 | AF71: 5.5 | AI71: 2 | AJ71: 5.5 | AM71: 0 | AN71: 0 | AO71: 0 | AP71: =SUM(W71:AL71) -> 30
A72: 22 | B72: Курмаев Д.В. Слесарь по обслуживанию и ремонту оборудования | C72: 145 | D72: В | E72: Я | F72: Я/Н | G72: Н/Я | H72: В | I72: Я | J72: Я/Н | K72: Н/Я | L72: В | M72: ОТ | N72: ОТ | O72: ОТ | P72: ОТ | Q72: ОТ | R72: ОТ | S72: 2 | T72: 2 | U72: 2 | V72: =SUM(S72:U72) -> 6 | W72: ОТ | X72: ОТ | Y72: ОТ | Z72: ОТ | AA72: ОТ | AB72: ОТ | AC72: ОТ | AD72: ОТ | AE72: ОТ | AF72: ОТ | AG72: ОД | AH72: ОД | AI72: ОД | AJ72: ОД | AK72: ОД | AL72: ОД | AM72: 0 | AN72: 0 | AO72: 0 | AP72: =SUM(AM72:AO72) -> 0 | AQ72: =COUNTA((D73:R73),(W73:AL73)) -> 6 | AT72: =V73+AP73 -> 46 | AW72: =V74+AP74 -> 15 | AY72: =COUNTIF((D72:R72),"В")+COUNTIF((W72:AL72),"В") -> 3 | AZ72: 16/6 | BA72: 09/10 | BB72: 16/6 | BC72: =AQ72+AY72-$BC$6 -> -22
E73: 11.5 | F73: 4 | G73: 7.5 | I73: 11.5 | J73: 4 | K73: 7.5 | S73: 0 | T73: 0 | U73: 0 | V73: =SUM(D73:R73) -> 46 | AM73: 0 | AN73: 0 | AO73: 0 | AP73: =SUM(W73:AL73) -> 0
F74: 2 | G74: 5.5 | J74: 2 | K74: 5.5 | S74: 0 | T74: 0 | U74: 0 | V74: =SUM(D74:R74) -> 15 | AM74: 0 | AN74: 0 | AO74: 0 | AP74: =SUM(W74:AL74) -> 0
A75: 23 | B75: Куроптев А.В. Слесарь по обслуживанию и ремонту оборудования | C75: 89 | D75: ОТ | E75: ОТ | F75: ОТ | G75: ОТ | H75: ОТ | I75: ОТ | J75: ОТ | K75: ОТ | L75: ОТ | M75: ОТ | N75: ОТ | O75: ОД | P75: ОД | Q75: ОД | R75: ОД | S75: 0 | T75: 0 | U75: 0 | V75: =SUM(S75:U75) -> 0 | W75: ОД | X75: ОД | Y75: ОД | Z75: ОД | AA75: ОД | AB75: ОД | AC75: ОД | AD75: ОД | AE75: ОД | AF75: ОД | AG75: ОД | AH75: ОД | AI75: ОД | AJ75: ОД | AK75: ОД | AL75: ОД | AM75: 0 | AN75: 0 | AO75: 0 | AP75: =SUM(AM75:AO75) -> 0 | AQ75: =COUNTA((D76:R76),(W76:AL76)) -> 0 | AR75: =COUNTIF(W75:AL75,"В") -> 0 | AS75: =COUNTA(W75:AL75) -> 16 | AT75: =V76+AP76 -> 0 | AW75: =V77+AP77 -> 0 | AY75: =COUNTIF((D75:R75),"В")+COUNTIF((W75:AL75),"В") -> 0 | AZ75: 11/20 | BA75: 09/10 | BB75: 11/20 | BC75: =AQ75+AY75-$BC$6 -> -31
S76: 0 | T76: 0 | U76: 0 | V76: =SUM(D76:R76) -> 0 | AM76: 0 | AN76: 0 | AO76: 0 | AP76: =SUM(W76:AL76) -> 0
S77: 0 | T77: 0 | U77: 0 | V77: =SUM(D77:R77) -> 0 | AM77: 0 | AN77: 0 | AO77: 0 | AP77: =SUM(W77:AL77) -> 0
A78: 24 | B78: Лазаренко П.Н. Слесарь по обслуживанию и ремонту оборудования | C78: 244 | D78: В | E78: Я | F78: Я/Н | G78: Н/Я | H78: В | I78: Я | J78: Я/Н | K78: Н/Я | L78: В | M78: Я | N78: Я/Н | O78: Н/Я | P78: В | Q78: Я | R78: Я/Н | S78: 4 | T78: 4 | U78: 3 | V78: =SUM(S78:U78) -> 11 | W78: Н/Я | X78: В | Y78: Я | Z78: Я/Н | AA78: Н/Я | AB78: В | AC78: Я | AD78: Я/Н | AE78: Н/Я | AF78: В | AG78: Я | AH78: Я/Н | AI78: Н/Я | AJ78: В | AK78: Я | AL78: Я/Н | AM78: 4 | AN78: 4 | AO78: 4 | AP78: =SUM(AM78:AO78) -> 12 | AQ78: =COUNTA((D79:R79),(W79:AL79)) -> 23 | AT78: =V79+AP79 -> 176.5 | AW78: =V80+AP80 -> 54.5 | AY78: =COUNTIF((D78:R78),"В")+COUNTIF((W78:AL78),"В") -> 8 | AZ78: =$BC$6-AQ78-AY78 -> 0 | BA78: 0 | BB78: 0 | BC78: =AQ78+AY78-$BC$6 -> 0
E79: 11.5 | F79: 4 | G79: 7.5 | I79: 11.5 | J79: 4 | K79: 7.5 | M79: 11.5 | N79: 4 | O79: 7.5 | Q79: 11.5 | R79: 4 | S79: 0 | T79: 0 | U79: 0 | V79: =SUM(D79:R79) -> 84.5 | W79: 7.5 | Y79: 11.5 | Z79: 4 | AA79: 7.5 | AC79: 11.5 | AD79: 4 | AE79: 7.5 | AG79: 11.5 | AH79: 4 | AI79: 7.5 | AK79: 11.5 | AL79: 4 | AM79: 0 | AN79: 0 | AO79: 0 | AP79: =SUM(W79:AL79) -> 92
F80: 2 | G80: 5.5 | J80: 2 | K80: 5.5 | N80: 2 | O80: 5.5 | R80: 2 | S80: 0 | T80: 0 | U80: 0 | V80: =SUM(D80:R80) -> 24.5 | W80: 5.5 | Z80: 2 | AA80: 5.5 | AD80: 2 | AE80: 5.5 | AH80: 2 | AI80: 5.5 | AL80: 2 | AM80: 0 | AN80: 0 | AO80: 0 | AP80: =SUM(W80:AL80) -> 30
A81: 25 | B81: Лаптев Т.В. Слесарь по обслуживанию и ремонту оборудования | C81: 255 | D81: Я/Н | E81: Н/Я | F81: В | G81: Я | H81: Я/Н | I81: Н/Я | J81: В | K81: Я | L81: Я/Н | M81: Н/Я | N81: В | O81: Я | P81: Я/Н | Q81: Н/Я | R81: В | S81: 3 | T81: 4 | U81: 4 | V81: =SUM(S81:U81) -> 11 | W81: Я | X81: Я/Н | Y81: Н/Я | Z81: В | AA81: Я | AB81: Я/Н | AC81: Н/Я | AD81: В | AE81: Я | AF81: Я/Н | AG81: Н/Я | AH81: В | AI81: Я | AJ81: Я/Н | AK81: Н/Я | AL81: В | AM81: 4 | AN81: 4 | AO81: 4 | AP81: =SUM(AM81:AO81) -> 12 | AQ81: =COUNTA((D82:R82),(W82:AL82)) -> 23 | AT81: =V82+AP82 -> 172.5 | AW81: =V83+AP83 -> 60 | AY81: =COUNTIF((D81:R81),"В")+COUNTIF((W81:AL81),"В") -> 8 | AZ81: =$BC$6-AQ81-AY81 -> 0 | BA81: 0 | BB81: 0 | BC81: =AQ81+AY81-$BC$6 -> 0
D82: 4 | E82: 7.5 | G82: 11.5 | H82: 4 | I82: 7.5 | K82: 11.5 | L82: 4 | M82: 7.5 | O82: 11.5 | P82: 4 | Q82: 7.5 | S82: 0 | T82: 0 | U82: 0 | V82: =SUM(D82:R82) -> 80.5 | W82: 11.5 | X82: 4 | Y82: 7.5 | AA82: 11.5 | AB82: 4 | AC82: 7.5 | AE82: 11.5 | AF82: 4 | AG82: 7.5 | AI82: 11.5 | AJ82: 4 | AK82: 7.5 | AM82: 0 | AN82: 0 | AO82: 0 | AP82: =SUM(W82:AL82) -> 92
D83: 2 | E83: 5.5 | H83: 2 | I83: 5.5 | L83: 2 | M83: 5.5 | P83: 2 | Q83: 5.5 | S83: 0 | T83: 0 | U83: 0 | V83: =SUM(D83:R83) -> 30 | X83: 2 | Y83: 5.5 | AB83: 2 | AC83: 5.5 | AF83: 2 | AG83: 5.5 | AJ83: 2 | AK83: 5.5 | AM83: 0 | AN83: 0 | AO83: 0 | AP83: =SUM(W83:AL83) -> 30
A84: 26 | B84: Ларичев Н.П. Слесарь по обслуживанию и ремонту оборудования | C84: 239 | D84: Я/Н | E84: Н/Я | F84: В | G84: Я | H84: Я/Н | I84: Н/Я | J84: В | K84: Я | L84: Я/Н | M84: Н/Я | N84: В | O84: Я | P84: Я/Н | Q84: Н/Я | R84: В | S84: 3 | T84: 4 | U84: 4 | V84: =SUM(S84:U84) -> 11 | W84: Я | X84: Я/Н | Y84: Н/Я | Z84: В | AA84: Я | AB84: Я/Н | AC84: Н/Я | AD84: В | AE84: Я | AF84: Я/Н | AG84: Н/Я | AH84: В | AI84: Я | AJ84: Я/Н | AK84: Н/Я | AL84: В | AM84: 4 | AN84: 4 | AO84: 4 | AP84: =SUM(AM84:AO84) -> 12 | AQ84: =COUNTA((D85:R85),(W85:AL85)) -> 23 | AR84: =COUNTIF(W84:AL84,"В") -> 4 | AS84: =COUNTA(W84:AL84) -> 16 | AT84: =V85+AP85 -> 172.5 | AW84: =V86+AP86 -> 60 | AY84: =COUNTIF((D84:R84),"В")+COUNTIF((W84:AL84),"В") -> 8 | AZ84: =$BC$6-AQ84-AY84 -> 0 | BA84: 0 | BB84: 0 | BC84: =AQ84+AY84-$BC$6 -> 0
D85: 4 | E85: 7.5 | G85: 11.5 | H85: 4 | I85: 7.5 | K85: 11.5 | L85: 4 | M85: 7.5 | O85: 11.5 | P85: 4 | Q85: 7.5 | S85: 0 | T85: 0 | U85: 0 | V85: =SUM(D85:R85) -> 80.5 | W85: 11.5 | X85: 4 | Y85: 7.5 | AA85: 11.5 | AB85: 4 | AC85: 7.5 | AE85: 11.5 | AF85: 4 | AG85: 7.5 | AI85: 11.5 | AJ85: 4 | AK85: 7.5 | AM85: 0 | AN85: 0 | AO85: 0 | AP85: =SUM(W85:AL85) -> 92
D86: 2 | E86: 5.5 | H86: 2 | I86: 5.5 | L86: 2 | M86: 5.5 | P86: 2 | Q86: 5.5 | S86: 0 | T86: 0 | U86: 0 | V86: =SUM(D86:R86) -> 30 | X86: 2 | Y86: 5.5 | AB86: 2 | AC86: 5.5 | AF86: 2 | AG86: 5.5 | AJ86: 2 | AK86: 5.5 | AM86: 0 | AN86: 0 | AO86: 0 | AP86: =SUM(W86:AL86) -> 30
A87: 27 | B87: Лопатников С.В. Слесарь по обслуживанию и ремонту оборудования | C87: 99 | D87: Я | E87: Я/Н | F87: Н/Я | G87: В | H87: Я | I87: Я/Н | J87: Н/Я | K87: В | L87: Я | M87: Я/Н | N87: Н/Я | O87: В | P87: Я | Q87: Я/Н | R87: Н/Я | S87: 4 | T87: 4 | U87: 4 | V87: =SUM(S87:U87) -> 12 | W87: В | X87: Я | Y87: Я/Н | Z87: Н/Я | AA87: В | AB87: Я | AC87: Я/Н | AD87: Н/Я | AE87: В | AF87: Я | AG87: Я/Н | AH87: Н/Я | AI87: В | AJ87: Я | AK87: Я/Н | AL87: Н/Я | AM87: 4 | AN87: 4 | AO87: 4 | AP87: =SUM(AM87:AO87) -> 12 | AQ87: =COUNTA((D88:R88),(W88:AL88)) -> 24 | AT87: =V88+AP88 -> 184 | AW87: =V89+AP89 -> 60 | AY87: =COUNTIF((D87:R87),"В")+COUNTIF((W87:AL87),"В") -> 7 | AZ87: =$BC$6-AQ87-AY87 -> 0 | BA87: 0 | BB87: 0 | BC87: =AQ87+AY87-$BC$6 -> 0
D88: 11.5 | E88: 4 | F88: 7.5 | H88: 11.5 | I88: 4 | J88: 7.5 | L88: 11.5 | M88: 4 | N88: 7.5 | P88: 11.5 | Q88: 4 | R88: 7.5 | S88: 0 | T88: 0 | U88: 0 | V88: =SUM(D88:R88) -> 92 | X88: 11.5 | Y88: 4 | Z88: 7.5 | AB88: 11.5 | AC88: 4 | AD88: 7.5 | AF88: 11.5 | AG88: 4 | AH88: 7.5 | AJ88: 11.5 | AK88: 4 | AL88: 7.5 | AM88: 0 | AN88: 0 | AO88: 0 | AP88: =SUM(W88:AL88) -> 92
E89: 2 | F89: 5.5 | I89: 2 | J89: 5.5 | M89: 2 | N89: 5.5 | Q89: 2 | R89: 5.5 | S89: 0 | T89: 0 | U89: 0 | V89: =SUM(D89:R89) -> 30 | Y89: 2 | Z89: 5.5 | AC89: 2 | AD89: 5.5 | AG89: 2 | AH89: 5.5 | AK89: 2 | AL89: 5.5 | AM89: 0 | AN89: 0 | AO89: 0 | AP89: =SUM(W89:AL89) -> 30
A90: 28 | B90: Лушков В.А. Слесарь по обслуживанию и ремонту оборудования | C90: 216 | D90: ОД | E90: ОД | F90: ОД | G90: ОД | H90: ОД | I90: ОД | J90: ОД | K90: ОД | L90: ОД | M90: ОД | N90: ОД | O90: ОД | P90: ОД | Q90: ОД | R90: ОД | S90: 0 | T90: 0 | U90: 0 | V90: =SUM(S90:U90) -> 0 | W90: ОД | X90: В | Y90: Я | Z90: Я/Н | AA90: Н/Я | AB90: МО | AC90: Я | AD90: Я/Н | AE90: Н/Я | AF90: В | AG90: Я | AH90: Я/Н | AI90: Н/Я | AJ90: В | AK90: Я | AL90: Я/Н | AM90: 4 | AN90: 4 | AO90: 3 | AP90: =SUM(AM90:AO90) -> 11 | AQ90: =COUNTA((D91:R91),(W91:AL91)) -> 11 | AR90: =COUNTIF(W90:AL90,"В") -> 3 | AS90: =COUNTA(W90:AL90) -> 16 | AT90: =V91+AP91 -> 84.5 | AW90: =V92+AP92 -> 24.5 | AY90: =COUNTIF((D90:R90),"В")+COUNTIF((W90:AL90),"В") -> 3 | AZ90: 16/1 | BA90: 10 | BB90: 16/1 | BC90: =AQ90+AY90-$BC$6 -> -17
S91: 0 | T91: 0 | U91: 0 | V91: =SUM(D91:R91) -> 0 | Y91: 11.5 | Z91: 4 | AA91: 7.5 | AC91: 11.5 | AD91: 4 | AE91: 7.5 | AG91: 11.5 | AH91: 4 | AI91: 7.5 | AK91: 11.5 | AL91: 4 | AM91: 0 | AN91: 0 | AO91: 0 | AP91: =SUM(W91:AL91) -> 84.5
S92: 0 | T92: 0 | U92: 0 | V92: =SUM(D92:R92) -> 0 | Z92: 2 | AA92: 5.5 | AD92: 2 | AE92: 5.5 | AH92: 2 | AI92: 5.5 | AL92: 2 | AM92: 0 | AN92: 0 | AO92: 0 | AP92: =SUM(W92:AL92) -> 24.5
A93: 29 | B93: Мамаев Э.А. Слесарь по обслуживанию и ремонту оборудования | C93: 266 | D93: ДО | E93: ДО | F93: ДО | G93: ДО | H93: ДО | I93: Я | J93: В | K93: Я | L93: Я/Н | M93: Н/Я | N93: В | O93: Я | P93: Я/Н | Q93: Н/Я | R93: В | S93: 3 | T93: 2 | U93: 2 | V93: =SUM(S93:U93) -> 7 | W93: Я | X93: Я/Н | Y93: Н/Я | Z93: В | AA93: Я | AB93: Я/Н | AC93: Н/Я | AD93: В | AE93: Я | AF93: Я/Н | AG93: Н/Я | AH93: В | AI93: Я | AJ93: Я/Н | AK93: Н/Я | AL93: В | AM93: 4 | AN93: 4 | AO93: 4 | AP93: =SUM(AM93:AO93) -> 12 | AQ93: =COUNTA((D94:R94),(W94:AL94)) -> 19 | AR93: =COUNTIF(W93:AL93,"В") -> 4 | AS93: =COUNTA(W93:AL93) -> 16 | AT93: =V94+AP94 -> 149.5 | AW93: =V95+AP95 -> 45 | AY93: =COUNTIF((D93:R93),"В")+COUNTIF((W93:AL93),"В") -> 7 | AZ93: 5 | BA93: 16 | BB93: 5 | BC93: =AQ93+AY93-$BC$6 -> -5
I94: 11.5 | K94: 11.5 | L94: 4 | M94: 7.5 | O94: 11.5 | P94: 4 | Q94: 7.5 | S94: 0 | T94: 0 | U94: 0 | V94: =SUM(D94:R94) -> 57.5 | W94: 11.5 | X94: 4 | Y94: 7.5 | AA94: 11.5 | AB94: 4 | AC94: 7.5 | AE94: 11.5 | AF94: 4 | AG94: 7.5 | AI94: 11.5 | AJ94: 4 | AK94: 7.5 | AM94: 0 | AN94: 0 | AO94: 0 | AP94: =SUM(W94:AL94) -> 92
L95: 2 | M95: 5.5 | P95: 2 | Q95: 5.5 | S95: 0 | T95: 0 | U95: 0 | V95: =SUM(D95:R95) -> 15 | X95: 2 | Y95: 5.5 | AB95: 2 | AC95: 5.5 | AF95: 2 | AG95: 5.5 | AJ95: 2 | AK95: 5.5 | AM95: 0 | AN95: 0 | AO95: 0 | AP95: =SUM(W95:AL95) -> 30
A96: 30 | B96: Мишуткин С.А. Слесарь по обслуживанию и ремонту оборудования | C96: 206 | D96: Н/Я | E96: В | F96: Я | G96: Я/Н | H96: Н/Я | I96: В | J96: Я | K96: Я/Н | L96: Н/Я | M96: В | N96: Я | O96: Я/Н | P96: Н/Я | Q96: В | R96: Я | S96: 4 | T96: 3 | U96: 4 | V96: =SUM(S96:U96) -> 11 | W96: Я/Н | X96: Н/Я | Y96: В | Z96: Я | AA96: Я/Н | AB96: Н/Я | AC96: В | AD96: Я | AE96: Я/Н | AF96: Н/Я | AG96: В | AH96: Я | AI96: Я/Н | AJ96: Н/Я | AK96: В | AL96: Я | AM96: 4 | AN96: 4 | AO96: =COUNTIF(W96:AL96,"Н/Я") -> 4 | AP96: =SUM(AM96:AO96) -> 12 | AQ96: =COUNTA((D97:R97),(W97:AL97)) -> 23 | AR96: =COUNTIF(W96:AL96,"В") -> 4 | AS96: =COUNTA(W96:AL96) -> 16 | AT96: =V97+AP97 -> 180 | AW96: =V98+AP98 -> 58 | AY96: =COUNTIF((D96:R96),"В")+COUNTIF((W96:AL96),"В") -> 8 | AZ96: =$BC$6-AQ96-AY96 -> 0 | BA96: 0 | BB96: 0 | BC96: =AQ96+AY96-$BC$6 -> 0
D97: 7.5 | F97: 11.5 | G97: 4 | H97: 7.5 | J97: 11.5 | K97: 4 | L97: 7.5 | N97: 11.5 | O97: 4 | P97: 7.5 | R97: 11.5 | S97: 0 | T97: 0 | U97: 0 | V97: =SUM(D97:R97) -> 88 | W97: 4 | X97: 7.5 | Z97: 11.5 | AA97: 4 | AB97: 7.5 | AD97: 11.5 | AE97: 4 | AF97: 7.5 | AH97: 11.5 | AI97: 4 | AJ97: 7.5 | AL97: 11.5 | AM97: 0 | AN97: 0 | AO97: 0 | AP97: =SUM(W97:AL97) -> 92
D98: 5.5 | G98: 2 | H98: 5.5 | K98: 2 | L98: 5.5 | O98: 2 | P98: 5.5 | S98: 0 | T98: 0 | U98: 0 | V98: =SUM(D98:R98) -> 28 | W98: 2 | X98: 5.5 | AA98: 2 | AB98: 5.5 | AE98: 2 | AF98: 5.5 | AI98: 2 | AJ98: 5.5 | AM98: 0 | AN98: 0 | AO98: 0 | AP98: =SUM(W98:AL98) -> 30
A99: 31 | B99: Орлов П.В. Слесарь по обслуживанию и ремонту оборудования | C99: 233 | D99: ДО | E99: ДО | F99: ДО | G99: ДО | H99: ДО | I99: ДО | J99: ДО | K99: ДО | L99: ОТ | M99: ОТ | N99: ОТ | O99: ОТ | P99: ОТ | Q99: ОТ | R99: ОТ | S99: 0 | T99: 0 | U99: 0 | V99: =SUM(S99:U99) -> 0 | W99: ОТ | X99: ОТ | Y99: ОТ | Z99: ОТ | AA99: ОТ | AB99: ОТ | AC99: ОТ | AD99: ОТ | AE99: ОТ | AF99: ОТ | AG99: ОТ | AH99: ОТ | AI99: ОТ | AJ99: ОТ | AK99: ОТ | AL99: ОТ | AM99: 0 | AN99: 0 | AO99: 0 | AP99: =SUM(AM99:AO99) -> 0 | AQ99: =COUNTA((D100:R100),(W100:AL100)) -> 0 | AT99: =V100+AP100 -> 0 | AW99: =V101+AP101 -> 0 | AY99: =COUNTIF((D99:R99),"В")+COUNTIF((W99:AL99),"В") -> 0 | AZ99: 8/23 | BA99: 16/09 | BB99: 8/23 | BC99: =AQ99+AY99-$BC$6 -> -31
S100: 0 | T100: 0 | U100: 0 | V100: =SUM(D100:R100) -> 0 | AM100: 0 | AN100: 0 | AO100: 0 | AP100: =SUM(W100:AL100) -> 0
S101: 0 | T101: 0 | U101: 0 | V101: =SUM(D101:R101) -> 0 | AM101: 0 | AN101: 0 | AO101: 0 | AP101: =SUM(W101:AL101) -> 0
A102: 32 | B102: Першин Е.В. Мастер участка | C102: 16 | D102: В | E102: Я | F102: Я | G102: В | H102: В | I102: Я | J102: Я | K102: Я | L102: Я | M102: Я | N102: В | O102: В | P102: Я | Q102: Я | R102: Я | S102: 10 | T102: 0 | U102: 0 | V102: =SUM(S102:U102) -> 10 | W102: Я | X102: Я | Y102: В | Z102: В | AA102: Я | AB102: Я | AC102: Я | AD102: К | AE102: К | AF102: В | AG102: В | AH102: Я | AI102: Я | AJ102: Я | AK102: Я | AL102: Я | AM102: 10 | AN102: 0 | AO102: 0 | AP102: =SUM(AM102:AO102) -> 10 | AQ102: =COUNTA((D103:R103),(W103:AL103)) -> 20 | AT102: =V103+AP103 -> 160 | AW102: =V104+AP104 -> 0 | AY102: =COUNTIF((D102:R102),"В")+COUNTIF((W102:AL102),"В") -> 9 | AZ102: =$BC$6-AQ102-AY102 -> 2 | BA102: 06 | BB102: 2 | BC102: =AQ102+AY102-$BC$6 -> -2
E103: 8 | F103: 8 | I103: 8 | J103: 8 | K103: 8 | L103: 8 | M103: 8 | P103: 8 | Q103: 8 | R103: 8 | S103: 0 | T103: 0 | U103: 0 | V103: =SUM(D103:R103) -> 80 | W103: 8 | X103: 8 | AA103: 8 | AB103: 8 | AC103: 8 | AH103: 8 | AI103: 8 | AJ103: 8 | AK103: 8 | AL103: 8 | AM103: 0 | AN103: 0 | AO103: 0 | AP103: =SUM(W103:AL103) -> 80
S104: 0 | T104: 0 | U104: 0 | V104: =SUM(D104:R104) -> 0 | AM104: 0 | AN104: 0 | AO104: 0 | AP104: =SUM(W104:AL104) -> 0 | AR104: Выходных | AS104: Значений
A105: 33 | B105: Радченко М.В. Мастер участка | C105: 158 | D105: В | E105: Я | F105: Я/Н | G105: Н/Я | H105: В | I105: Я | J105: Я/Н | K105: Н/Я | L105: В | M105: Я | N105: Я/Н | O105: Н/Я | P105: В | Q105: Я | R105: Я/Н | S105: 4 | T105: 4 | U105: 3 | V105: =SUM(S105:U105) -> 11 | W105: Н/Я | X105: Я | Y105: В | Z105: Я | AA105: Я/Н | AB105: Н/Я | AC105: В | AD105: Я | AE105: Я/Н | AF105: Н/Я | AG105: В | AH105: Я | AI105: Я/Н | AJ105: Н/Я | AK105: В | AL105: Я | AM105: 5 | AN105: 3 | AO105: 4 | AP105: =SUM(AM105:AO105) -> 12 | AQ105: =COUNTA((D106:R106),(W106:AL106)) -> 23 | AR105: =COUNTIF(W105:AL105,"В") -> 4 | AS105: =COUNTA(W105:AL105) -> 16 | AT105: =V106+AP106 -> 180.5 | AW105: =V107+AP107 -> 52.5 | AY105: =COUNTIF((D105:R105),"В")+COUNTIF((W105:AL105),"В") -> 8 | AZ105: =$BC$6-AQ105-AY105 -> 0 | BA105: 0 | BB105: 0 | BC105: =AQ105+AY105-$BC$6 -> 0
E106: 11.5 | F106: 4 | G106: 7.5 | I106: 11.5 | J106: 4 | K106: 7.5 | M106: 11.5 | N106: 4 | O106: 7.5 | Q106: 11.5 | R106: 4 | S106: 0 | T106: 0 | U106: 0 | V106: =SUM(D106:R106) -> 84.5 | W106: 7.5 | X106: 8 | Z106: 11.5 | AA106: 4 | AB106: 7.5 | AD106: 11.5 | AE106: 4 | AF106: 7.5 | AH106: 11.5 | AI106: 4 | AJ106: 7.5 | AL106: 11.5 | AM106: 0 | AN106: 0 | AO106: 0 | AP106: =SUM(W106:AL106) -> 96
F107: 2 | G107: 5.5 | J107: 2 | K107: 5.5 | N107: 2 | O107: 5.5 | R107: 2 | S107: 0 | T107: 0 | U107: 0 | V107: =SUM(D107:R107) -> 24.5 | W107: 5.5 | AA107: 2 | AB107: 5.5 | AE107: 2 | AF107: 5.5 | AI107: 2 | AJ107: 5.5 | AM107: 0 | AN107: 0 | AO107: 0 | AP107: =SUM(W107:AL107) -> 28
A108: 34 | B108: Рубаненко А.Л. электрослесарь по обслуживанию и ремонту оборудования | C108: 240 | D108: Я | E108: Я/Н | F108: Н/Я | G108: В | H108: Я | I108: Я/Н | J108: Н/Я | K108: В | L108: Я | M108: Я/Н | N108: Н/Я | O108: В | P108: Я | Q108: Я/Н | R108: Н/Я | S108: 4 | T108: 4 | U108: 4 | V108: =SUM(S108:U108) -> 12 | W108: В | X108: Я | Y108: Я/Н | Z108: Н/Я | AA108: В | AB108: Я | AC108: Я/Н | AD108: Н/Я | AE108: В | AF108: Я | AG108: Я/Н | AH108: Н/Я | AI108: В | AJ108: Я | AK108: Я/Н | AL108: Н/Я | AM108: 4 | AN108: 4 | AO108: 4 | AP108: =SUM(AM108:AO108) -> 12 | AQ108: =COUNTA((D109:R109),(W109:AL109)) -> 24 | AT108: =V109+AP109 -> 184 | AW108: =V110+AP110 -> 60 | AY108: =COUNTIF((D108:R108),"В")+COUNTIF((W108:AL108),"В") -> 7 | AZ108: =$BC$6-AQ108-AY108 -> 0 | BA108: 0 | BB108: 0 | BC108: =AQ108+AY108-$BC$6 -> 0
D109: 11.5 | E109: 4 | F109: 7.5 | H109: 11.5 | I109: 4 | J109: 7.5 | L109: 11.5 | M109: 4 | N109: 7.5 | P109: 11.5 | Q109: 4 | R109: 7.5 | S109: 0 | T109: 0 | U109: 0 | V109: =SUM(D109:R109) -> 92 | X109: 11.5 | Y109: 4 | Z109: 7.5 | AB109: 11.5 | AC109: 4 | AD109: 7.5 | AF109: 11.5 | AG109: 4 | AH109: 7.5 | AJ109: 11.5 | AK109: 4 | AL109: 7.5 | AM109: 0 | AN109: 0 | AO109: 0 | AP109: =SUM(W109:AL109) -> 92
E110: 2 | F110: 5.5 | I110: 2 | J110: 5.5 | M110: 2 | N110: 5.5 | Q110: 2 | R110: 5.5 | S110: 0 | T110: 0 | U110: 0 | V110: =SUM(D110:R110) -> 30 | Y110: 2 | Z110: 5.5 | AC110: 2 | AD110: 5.5 | AG110: 2 | AH110: 5.5 | AK110: 2 | AL110: 5.5 | AM110: 0 | AN110: 0 | AO110: 0 | AP110: =SUM(W110:AL110) -> 30
A111: 35 | B111: Рыскаль С.А. Мастер | C111: 127 | D111: Я/Н | E111: Н/Я | F111: В | G111: Я | H111: Я/Н | I111: Н/Я | J111: В | K111: Я | L111: Я/Н | M111: Н/Я | N111: В | O111: Я | P111: Я/Н | Q111: Н/Я | R111: В | S111: 3 | T111: 4 | U111: 4 | V111: =SUM(S111:U111) -> 11 | W111: Я | X111: Я/Н | Y111: Н/Я | Z111: В | AA111: Я | AB111: Я/Н | AC111: Н/Я | AD111: В | AE111: Я | AF111: Я/Н | AG111: Н/Я | AH111: В | AI111: Я | AJ111: Я/Н | AK111: Н/Я | AL111: В | AM111: 4 | AN111: 4 | AO111: 4 | AP111: =SUM(AM111:AO111) -> 12 | AQ111: =COUNTA((D112:R112),(W112:AL112)) -> 23 | AR111: =COUNTIF(W111:AL111,"В") -> 4 | AS111: =COUNTA(W111:AL111) -> 16 | AT111: =V112+AP112 -> 172.5 | AW111: =V113+AP113 -> 60 | AY111: =COUNTIF((D111:R111),"В")+COUNTIF((W111:AL111),"В") -> 8 | AZ111: =$BC$6-AQ111-AY111 -> 0 | BA111: 0 | BB111: 0 | BC111: =AQ111+AY111-$BC$6 -> 0
D112: 4 | E112: 7.5 | G112: 11.5 | H112: 4 | I112: 7.5 | K112: 11.5 | L112: 4 | M112: 7.5 | O112: 11.5 | P112: 4 | Q112: 7.5 | S112: 0 | T112: 0 | U112: 0 | V112: =SUM(D112:R112) -> 80.5 | W112: 11.5 | X112: 4 | Y112: 7.5 | AA112: 11.5 | AB112: 4 | AC112: 7.5 | AE112: 11.5 | AF112: 4 | AG112: 7.5 | AI112: 11.5 | AJ112: 4 | AK112: 7.5 | AM112: 0 | AN112: 0 | AO112: 0 | AP112: =SUM(W112:AL112) -> 92
D113: 2 | E113: 5.5 | H113: 2 | I113: 5.5 | L113: 2 | M113: 5.5 | P113: 2 | Q113: 5.5 | S113: 0 | T113: 0 | U113: 0 | V113: =SUM(D113:R113) -> 30 | X113: 2 | Y113: 5.5 | AB113: 2 | AC113: 5.5 | AF113: 2 | AG113: 5.5 | AJ113: 2 | AK113: 5.5 | AM113: 0 | AN113: 0 | AO113: 0 | AP113: =SUM(W113:AL113) -> 30
A114: 36 | B114: Селиверстов Е.Н. Слесарь по обслуживанию и ремонту оборудования | C114: 219 | D114: ОД | E114: ОД | F114: ОД | G114: ОД | H114: ОД | I114: ОД | J114: ОД | K114: ОД | L114: ОД | M114: ОД | N114: ОД | O114: ОД | P114: ОД | Q114: ОД | R114: ОД | S114: 0 | T114: 0 | U114: 0 | V114: =SUM(S114:U114) -> 0 | W114: ОД | X114: ОД | Y114: ОД | Z114: ОД | AA114: ОД | AB114: ОД | AC114: ОД | AD114: ОД | AE114: Я/Н | AF114: Н/Я | AG114: В | AH114: Я | AI114: Я/Н | AJ114: Н/Я | AK114: МО | AL114: Я | AM114: 2 | AN114: 2 | AO114: 2 | AP114: =SUM(AM114:AO114) -> 6 | AQ114: =COUNTA((D115:R115),(W115:AL115)) -> 6 | AR114: =COUNTIF(W114:AL114,"В") -> 1 | AS114: =COUNTA(W114:AL114) -> 16 | AT114: =V115+AP115 -> 46 | AW114: =V116+AP116 -> 15 | AY114: =COUNTIF((D114:R114),"В")+COUNTIF((W114:AL114),"В") -> 1 | AZ114: 23 | BA114: 10 | BB114: 23 | BC114: =AQ114+AY114-$BC$6 -> -24
S115: 0 | T115: 0 | U115: 0 | V115: =SUM(D115:R115) -> 0 | AE115: 4 | AF115: 7.5 | AH115: 11.5 | AI115: 4 | AJ115: 7.5 | AL115: 11.5 | AM115: 0 | AN115: 0 | AO115: 0 | AP115: =SUM(W115:AL115) -> 46
S116: 0 | T116: 0 | U116: 0 | V116: =SUM(D116:R116) -> 0 | AE116: 2 | AF116: 5.5 | AI116: 2 | AJ116: 5.5 | AM116: 0 | AN116: 0 | AO116: 0 | AP116: =SUM(W116:AL116) -> 15
A117: 37 | B117: Семенов А.М. Слесарь по обслуживанию и ремонту оборудования | C117: 116 | D117: Я | E117: Я/Н | F117: Н/Я | G117: В | H117: Я | I117: Я/Н | J117: Н/Я | K117: В | L117: Я | M117: Я/Н | N117: Н/Я | O117: В | P117: Я | Q117: Я/Н | R117: Н/Я | S117: 4 | T117: 4 | U117: 4 | V117: =SUM(S117:U117) -> 12 | W117: В | X117: Я | Y117: Я/Н | Z117: Н/Я | AA117: В | AB117: Б | AC117: Б | AD117: Б | AE117: Б | AF117: Б | AG117: Б | AH117: Б | AI117: Б | AJ117: Б | AK117: Я/Н | AL117: Н/Я | AM117: 1 | AN117: 2 | AO117: 2 | AP117: =SUM(AM117:AO117) -> 5 | AQ117: =COUNTA((D118:R118),(W118:AL118)) -> 17 | AR117: =COUNTIF(W117:AL117,"В") -> 2 | AS117: =COUNTA(W117:AL117) -> 16 | AT117: =V118+AP118 -> 126.5 | AW117: =V119+AP119 -> 45 | AY117: =COUNTIF((D117:R117),"В")+COUNTIF((W117:AL117),"В") -> 5 | AZ117: =$BC$6-AQ117-AY117 -> 9 | BA117: 19 | BB117: 9 | BC117: =AQ117+AY117-$BC$6 -> -9
D118: 11.5 | E118: 4 | F118: 7.5 | H118: 11.5 | I118: 4 | J118: 7.5 | L118: 11.5 | M118: 4 | N118: 7.5 | P118: 11.5 | Q118: 4 | R118: 7.5 | S118: 0 | T118: 0 | U118: 0 | V118: =SUM(D118:R118) -> 92 | X118: 11.5 | Y118: 4 | Z118: 7.5 | AK118: 4 | AL118: 7.5 | AM118: 0 | AN118: 0 | AO118: 0 | AP118: =SUM(W118:AL118) -> 34.5
E119: 2 | F119: 5.5 | I119: 2 | J119: 5.5 | M119: 2 | N119: 5.5 | Q119: 2 | R119: 5.5 | S119: 0 | T119: 0 | U119: 0 | V119: =SUM(D119:R119) -> 30 | Y119: 2 | Z119: 5.5 | AK119: 2 | AL119: 5.5 | AM119: 0 | AN119: 0 | AO119: 0 | AP119: =SUM(W119:AL119) -> 15
A120: 38 | B120: Семикашев С.С. Слесарь по обслуживанию и ремонту оборудования | C120: 100 | D120: Я | E120: Я/Н | F120: Н/Я | G120: В | H120: Я | I120: Я/Н | J120: Н/Я | K120: В | L120: Я | M120: Я/Н | N120: Н/Я | O120: В | P120: Я | Q120: Я/Н | R120: Н/Я | S120: 4 | T120: 4 | U120: 4 | V120: =SUM(S120:U120) -> 12 | W120: В | X120: Я | Y120: Я/Н | Z120: Н/Я | AA120: В | AB120: Я | AC120: Я/Н | AD120: Н/Я | AE120: В | AF120: Я | AG120: Я/Н | AH120: Н/Я | AI120: В | AJ120: Я | AK120: Я/Н | AL120: Н/Я | AM120: 4 | AN120: 4 | AO120: 4 | AP120: =SUM(AM120:AO120) -> 12 | AQ120: =COUNTA((D121:R121),(W121:AL121)) -> 24 | AR120: =COUNTIF(W120:AL120,"В") -> 4 | AS120: =COUNTA(W120:AL120) -> 16 | AT120: =V121+AP121 -> 184 | AW120: =V122+AP122 -> 60 | AY120: =COUNTIF((D120:R120),"В")+COUNTIF((W120:AL120),"В") -> 7 | AZ120: =$BC$6-AQ120-AY120 -> 0 | BA120: 0 | BB120: 0 | BC120: =AQ120+AY120-$BC$6 -> 0
D121: 11.5 | E121: 4 | F121: 7.5 | H121: 11.5 | I121: 4 | J121: 7.5 | L121: 11.5 | M121: 4 | N121: 7.5 | P121: 11.5 | Q121: 4 | R121: 7.5 | S121: 0 | T121: 0 | U121: 0 | V121: =SUM(D121:R121) -> 92 | X121: 11.5 | Y121: 4 | Z121: 7.5 | AB121: 11.5 | AC121: 4 | AD121: 7.5 | AF121: 11.5 | AG121: 4 | AH121: 7.5 | AJ121: 11.5 | AK121: 4 | AL121: 7.5 | AM121: 0 | AN121: 0 | AO121: 0 | AP121: =SUM(W121:AL121) -> 92
E122: 2 | F122: 5.5 | I122: 2 | J122: 5.5 | M122: 2 | N122: 5.5 | Q122: 2 | R122: 5.5 | S122: 0 | T122: 0 | U122: 0 | V122: =SUM(D122:R122) -> 30 | Y122: 2 | Z122: 5.5 | AC122: 2 | AD122: 5.5 | AG122: 2 | AH122: 5.5 | AK122: 2 | AL122: 5.5 | AM122: 0 | AN122: 0 | AO122: 0 | AP122: =SUM(W122:AL122) -> 30
A123: 39 | B123: Синицин А.К. Электрослесарь по обслуживанию и ремонту оборудования | C123: 100 | D123: Я/Н | E123: Н/Я | F123: В | G123: Я | H123: Я/Н | I123: Н/Я | J123: В | K123: Я | L123: Я/Н | M123: Н/Я | N123: В | O123: Я | P123: Я/Н | Q123: Н/Я | R123: В | S123: 3 | T123: 4 | U123: 4 | V123: =SUM(S123:U123) -> 11 | W123: Я | X123: Я/Н | Y123: Н/Я | Z123: В | AA123: Я | AB123: Я/Н | AC123: Н/Я | AD123: В | AE123: Я | AF123: Я/Н | AG123: Н/Я | AH123: В | AI123: Я | AJ123: Я/Н | AK123: Н/Я | AL123: В | AM123: 4 | AN123: 4 | AO123: 4 | AP123: =SUM(AM123:AO123) -> 12 | AQ123: =COUNTA((D124:R124),(W124:AL124)) -> 23 | AR123: =COUNTIF(W123:AL123,"В") -> 4 | AS123: =COUNTA(W123:AL123) -> 16 | AT123: =V124+AP124 -> 172.5 | AW123: =V125+AP125 -> 60 | AY123: =COUNTIF((D123:R123),"В")+COUNTIF((W123:AL123),"В") -> 8 | AZ123: =$BC$6-AQ123-AY123 -> 0 | BA123: 0 | BB123: 0 | BC123: =AQ123+AY123-$BC$6 -> 0
D124: 4 | E124: 7.5 | G124: 11.5 | H124: 4 | I124: 7.5 | K124: 11.5 | L124: 4 | M124: 7.5 | O124: 11.5 | P124: 4 | Q124: 7.5 | S124: 0 | T124: 0 | U124: 0 | V124: =SUM(D124:R124) -> 80.5 | W124: 11.5 | X124: 4 | Y124: 7.5 | AA124: 11.5 | AB124: 4 | AC124: 7.5 | AE124: 11.5 | AF124: 4 | AG124: 7.5 | AI124: 11.5 | AJ124: 4 | AK124: 7.5 | AM124: 0 | AN124: 0 | AO124: 0 | AP124: =SUM(W124:AL124) -> 92
D125: 2 | E125: 5.5 | H125: 2 | I125: 5.5 | L125: 2 | M125: 5.5 | P125: 2 | Q125: 5.5 | S125: 0 | T125: 0 | U125: 0 | V125: =SUM(D125:R125) -> 30 | X125: 2 | Y125: 5.5 | AB125: 2 | AC125: 5.5 | AF125: 2 | AG125: 5.5 | AJ125: 2 | AK125: 5.5 | AM125: 0 | AN125: 0 | AO125: =COUNTIF(W125:AL125,"Н/Я") -> 0 | AP125: =SUM(W125:AL125) -> 30
A126: 40 | B126: Слободкин В.Ю. Начальник участка | C126: 60 | D126: В | E126: Я | F126: Я | G126: В | H126: В | I126: Я | J126: Я | K126: Я | L126: Я | M126: Я | N126: В | O126: В | P126: ОТ | Q126: ОТ | R126: ОТ | S126: =COUNTIF(D126:R126,"Я") -> 7 | T126: =COUNTIF(D126:R126,"Я/Н") -> 0 | U126: =COUNTIF(D126:R126,"Н/Я") -> 0 | V126: =SUM(S126:U126) -> 7 | W126: ОТ | X126: ОТ | Y126: ОТ | Z126: ОТ | AA126: ОТ | AB126: ОТ | AC126: ОТ | AD126: ОТ | AE126: ОТ | AF126: ОТ | AG126: ОТ | AH126: ОТ | AI126: ОТ | AJ126: ОТ | AK126: ОТ | AL126: ОТ | AM126: =COUNTIF(W126:AL126,"Я") -> 0 | AN126: =COUNTIF(W126:AL126,"Я/Н") -> 0 | AO126: 0 | AP126: =SUM(AM126:AO126) -> 0 | AQ126: =COUNTA((D127:R127),(W127:AL127)) -> 7 | AR126: =COUNTIF(W126:AL126,"В") -> 0 | AS126: =COUNTA(W126:AL126) -> 16 | AT126: =V127+AP127 -> 56 | AW126: =V128+AP128 -> 0 | AY126: =COUNTIF((D126:R126),"В")+COUNTIF((W126:AL126),"В") -> 5 | AZ126: =$BC$6-AQ126-AY126 -> 19 | BA126: 09 | BB126: 19 | BC126: =AQ126+AY126-$BC$6 -> -19
E127: 8 | F127: 8 | I127: 8 | J127: 8 | K127: 8 | L127: 8 | M127: 8 | S127: 0 | T127: 0 | U127: 0 | V127: =SUM(D127:R127) -> 56 | AM127: 0 | AN127: 0 | AO127: 0 | AP127: =SUM(W127:AL127) -> 0
S128: 0 | T128: 0 | U128: 0 | V128: =SUM(D128:R128) -> 0 | AM128: 0 | AN128: 0 | AO128: 0 | AP128: =SUM(W128:AL128) -> 0
A129: 41 | B129: Смирнов Д.В. Слесарь по обслуживанию и ремонту оборудования | C129: 72 | D129: В | E129: Я | F129: Я/Н | G129: Н/Я | H129: В | I129: Я | J129: Я/Н | K129: Н/Я | L129: В | M129: Я | N129: Я/Н | O129: Н/Я | P129: В | Q129: Я | R129: Я/Н | S129: 4 | T129: 4 | U129: 3 | V129: =SUM(S129:U129) -> 11 | W129: Н/Я | X129: В | Y129: Я | Z129: Я/Н | AA129: Н/Я | AB129: В | AC129: Я | AD129: Я/Н | AE129: Н/Я | AF129: В | AG129: Б | AH129: Б | AI129: Б | AJ129: Б | AK129: Б | AL129: Б | AM129: 2 | AN129: 2 | AO129: 3 | AP129: =SUM(AM129:AO129) -> 7 | AQ129: =COUNTA((D130:R130),(W130:AL130)) -> 18 | AR129: =COUNTIF(W129:AL129,"В") -> 3 | AS129: =COUNTA(W129:AL129) -> 16 | AT129: =V130+AP130 -> 138 | AW129: =V131+AP131 -> 45 | AY129: =COUNTIF((D129:R129),"В")+COUNTIF((W129:AL129),"В") -> 7 | AZ129: =$BC$6-AQ129-AY129 -> 6 | BA129: 16 | BB129: 6 | BC129: =AQ129+AY129-$BC$6 -> -6
E130: 11.5 | F130: 4 | G130: 7.5 | I130: 11.5 | J130: 4 | K130: 7.5 | M130: 11.5 | N130: 4 | O130: 7.5 | Q130: 11.5 | R130: 4 | S130: 0 | T130: 0 | U130: 0 | V130: =SUM(D130:R130) -> 84.5 | W130: 7.5 | Y130: 11.5 | Z130: 4 | AA130: 7.5 | AC130: 11.5 | AD130: 4 | AE130: 7.5 | AM130: 0 | AN130: 0 | AO130: 0 | AP130: =SUM(W130:AL130) -> 53.5
F131: 2 | G131: 5.5 | J131: 2 | K131: 5.5 | N131: 2 | O131: 5.5 | R131: 2 | S131: 0 | T131: 0 | U131: 0 | V131: =SUM(D131:R131) -> 24.5 | W131: 5.5 | Z131: 2 | AA131: 5.5 | AD131: 2 | AE131: 5.5 | AM131: 0 | AN131: 0 | AO131: 0 | AP131: =SUM(W131:AL131) -> 20.5
A132: 42 | B132: Хоменко В.А. Мастер участка | C132: 86 | D132: ОТ | E132: ОТ | F132: ОТ | G132: ОТ | H132: ОТ | I132: ОТ | J132: ОТ | K132: ОТ | L132: ОТ | M132: ОТ | N132: ОТ | O132: ОТ | P132: ОТ | Q132: ОТ | R132: ОТ | S132: 0 | T132: 0 | U132: 0 | V132: =SUM(S132:U132) -> 0 | W132: ОТ | X132: ОТ | Y132: ОТ | Z132: ОТ | AA132: ОД | AB132: ОД | AC132: ОД | AD132: ОД | AE132: ОД | AF132: ОД | AG132: ОД | AH132: ОД | AI132: ОД | AJ132: ОД | AK132: ОД | AL132: ОД | AM132: 0 | AN132: 0 | AO132: 0 | AP132: =SUM(AM132:AO132) -> 0 | AQ132: =COUNTA((D133:R133),(W133:AL133)) -> 0 | AT132: =V133+AP133 -> 0 | AW132: =V134+AP134 -> 0 | AY132: =COUNTIF((D132:R132),"В")+COUNTIF((W132:AL132),"В") -> 0 | AZ132: 19/12 | BA132: 09/10 | BB132: 19/12 | BC132: =AQ132+AY132-$BC$6 -> -31
S133: 0 | T133: 0 | U133: 0 | V133: =SUM(D133:R133) -> 0 | AM133: 0 | AN133: 0 | AO133: 0 | AP133: =SUM(W133:AL133) -> 0
S134: 0 | T134: 0 | U134: 0 | V134: =SUM(D134:R134) -> 0 | AM134: 0 | AN134: 0 | AO134: 0 | AP134: =SUM(W134:AL134) -> 0
A135: 43 | B135: Цветков И.В. Слесарь по обслуживанию и ремонту оборудования | C135: 266 | D135: ДО | E135: ДО | F135: ДО | G135: ДО | H135: ДО | I135: Я | J135: Я/Н | K135: Н/Я | L135: В | M135: Я | N135: Я/Н | O135: Н/Я | P135: В | Q135: Я | R135: Я/Н | S135: 3 | T135: 3 | U135: 2 | V135: =SUM(S135:U135) -> 8 | W135: Н/Я | X135: В | Y135: Я | Z135: Я/Н | AA135: Н/Я | AB135: В | AC135: Я | AD135: Я/Н | AE135: Н/Я | AF135: В | AG135: Я | AH135: Я/Н | AI135: Н/Я | AJ135: В | AK135: Я | AL135: Я/Н | AM135: 4 | AN135: 4 | AO135: 4 | AP135: =SUM(AM135:AO135) -> 12 | AQ135: =COUNTA((D136:R136),(W136:AL136)) -> 20 | AR135: =COUNTIF(W135:AL135,"В") -> 4 | AS135: =COUNTA(W135:AL135) -> 16 | AT135: =V136+AP136 -> 153.5 | AW135: =V137+AP137 -> 47 | AY135: =COUNTIF((D135:R135),"В")+COUNTIF((W135:AL135),"В") -> 6 | AZ135: 12 | BA135: 16 | BB135: 12 | BC135: =AQ135+AY135-$BC$6 -> -5
I136: 11.5 | J136: 4 | K136: 7.5 | M136: 11.5 | N136: 4 | O136: 7.5 | Q136: 11.5 | R136: 4 | S136: 0 | T136: 0 | U136: 0 | V136: =SUM(D136:R136) -> 61.5 | W136: 7.5 | Y136: 11.5 | Z136: 4 | AA136: 7.5 | AC136: 11.5 | AD136: 4 | AE136: 7.5 | AG136: 11.5 | AH136: 4 | AI136: 7.5 | AK136: 11.5 | AL136: 4 | AM136: 0 | AN136: 0 | AO136: 0 | AP136: =SUM(W136:AL136) -> 92
J137: 2 | K137: 5.5 | N137: 2 | O137: 5.5 | R137: 2 | S137: 0 | T137: 0 | U137: 0 | V137: =SUM(D137:R137) -> 17 | W137: 5.5 | Z137: 2 | AA137: 5.5 | AD137: 2 | AE137: 5.5 | AH137: 2 | AI137: 5.5 | AL137: 2 | AM137: 0 | AN137: 0 | AO137: 0 | AP137: =SUM(W137:AL137) -> 30
A138: 44 | B138: Чаккиев А.И. Слесарь по обслуживанию и ремонту оборудования | C138: 209 | D138: Я | E138: Я/Н | F138: Н/Я | G138: В | H138: Я | I138: Я/Н | J138: Н/Я | K138: В | L138: Я | M138: Я/Н | N138: Н/Я | O138: В | P138: Я | Q138: Я/Н | R138: Н/Я | S138: 4 | T138: 4 | U138: 4 | V138: =SUM(S138:U138) -> 12 | W138: В | X138: Я | Y138: Я/Н | Z138: Н/Я | AA138: В | AB138: Я | AC138: Я/Н | AD138: Н/Я | AE138: В | AF138: Я | AG138: Я/Н | AH138: Н/Я | AI138: В | AJ138: Я | AK138: Я/Н | AL138: Н/Я | AM138: 4 | AN138: 4 | AO138: 4 | AP138: =SUM(AM138:AO138) -> 12 | AQ138: =COUNTA((D139:R139),(W139:AL139)) -> 24 | AR138: =COUNTIF(W138:AL138,"В") -> 4 | AS138: =COUNTA(W138:AL138) -> 16 | AT138: =V139+AP139 -> 184 | AW138: =V140+AP140 -> 60 | AY138: =COUNTIF((D138:R138),"В")+COUNTIF((W138:AL138),"В") -> 7 | AZ138: =$BC$6-AQ138-AY138 -> 0 | BA138: 0 | BB138: 0 | BC138: =AQ138+AY138-$BC$6 -> 0
D139: 11.5 | E139: 4 | F139: 7.5 | H139: 11.5 | I139: 4 | J139: 7.5 | L139: 11.5 | M139: 4 | N139: 7.5 | P139: 11.5 | Q139: 4 | R139: 7.5 | S139: 0 | T139: 0 | U139: 0 | V139: =SUM(D139:R139) -> 92 | X139: 11.5 | Y139: 4 | Z139: 7.5 | AB139: 11.5 | AC139: 4 | AD139: 7.5 | AF139: 11.5 | AG139: 4 | AH139: 7.5 | AJ139: 11.5 | AK139: 4 | AL139: 7.5 | AM139: 0 | AN139: 0 | AO139: 0 | AP139: =SUM(W139:AL139) -> 92
E140: 2 | F140: 5.5 | I140: 2 | J140: 5.5 | M140: 2 | N140: 5.5 | Q140: 2 | R140: 5.5 | S140: 0 | T140: 0 | U140: 0 | V140: =SUM(D140:R140) -> 30 | Y140: 2 | Z140: 5.5 | AC140: 2 | AD140: 5.5 | AG140: 2 | AH140: 5.5 | AK140: 2 | AL140: 5.5 | AM140: 0 | AN140: 0 | AO140: 0 | AP140: =SUM(W140:AL140) -> 30
A141: 45 | B141: Частоступов А.Г. Электрослесарь по обслуживанию и ремонту оборудования | C141: 223 | D141: Б | E141: Б | F141: В | G141: В | H141: Я | I141: Я/Н | J141: Н/Я | K141: В | L141: Я | M141: Я/Н | N141: Н/Я | O141: В | P141: Я | Q141: Я/Н | R141: Н/Я | S141: 3 | T141: 3 | U141: 3 | V141: =SUM(S141:U141) -> 9 | W141: В | X141: Я | Y141: Я/Н | Z141: Н/Я | AA141: В | AB141: Я | AC141: Я/Н | AD141: Н/Я | AE141: В | AF141: Я | AG141: Я/Н | AH141: Н/Я | AI141: В | AJ141: Я | AK141: Я/Н | AL141: Н/Я | AM141: 4 | AN141: 4 | AO141: 4 | AP141: =SUM(AM141:AO141) -> 12 | AQ141: =COUNTA((D142:R142),(W142:AL142)) -> 21 | AR141: =COUNTIF(W141:AL141,"В") -> 4 | AS141: =COUNTA(W141:AL141) -> 16 | AT141: =V142+AP142 -> 161 | AW141: =V143+AP143 -> 52.5 | AY141: =COUNTIF((D141:R141),"В")+COUNTIF((W141:AL141),"В") -> 8 | AZ141: =$BC$6-AQ141-AY141 -> 2 | BA141: 19 | BB141: 2 | BC141: =AQ141+AY141-$BC$6 -> -2
H142: 11.5 | I142: 4 | J142: 7.5 | L142: 11.5 | M142: 4 | N142: 7.5 | P142: 11.5 | Q142: 4 | R142: 7.5 | S142: 0 | T142: 0 | U142: 0 | V142: =SUM(D142:R142) -> 69 | X142: 11.5 | Y142: 4 | Z142: 7.5 | AB142: 11.5 | AC142: 4 | AD142: 7.5 | AF142: 11.5 | AG142: 4 | AH142: 7.5 | AJ142: 11.5 | AK142: 4 | AL142: 7.5 | AM142: 0 | AN142: 0 | AO142: 0 | AP142: =SUM(W142:AL142) -> 92
I143: 2 | J143: 5.5 | M143: 2 | N143: 5.5 | Q143: 2 | R143: 5.5 | S143: 0 | T143: 0 | U143: 0 | V143: =SUM(D143:R143) -> 22.5 | Y143: 2 | Z143: 5.5 | AC143: 2 | AD143: 5.5 | AG143: 2 | AH143: 5.5 | AK143: 2 | AL143: 5.5 | AM143: 0 | AN143: 0 | AO143: 0 | AP143: =SUM(W143:AL143) -> 30
A144: 46 | B144: Частоступов Г.А. Кладовщик | C144: 44 | D144: В | E144: В | F144: Я | G144: Я | H144: В | I144: В | J144: Я | K144: Я | L144: В | M144: В | N144: Я | O144: Я | P144: В | Q144: В | R144: Я | S144: 7 | T144: 0 | U144: 0 | V144: =SUM(S144:U144) -> 7 | W144: Я | X144: В | Y144: В | Z144: Я | AA144: Я | AB144: В | AC144: В | AD144: Я | AE144: Я | AF144: В | AG144: В | AH144: Я | AI144: Я | AJ144: В | AK144: В | AL144: Я | AM144: 8 | AN144: 0 | AO144: 0 | AP144: =SUM(AM144:AO144) -> 8 | AQ144: =COUNTA((D145:R145),(W145:AL145)) -> 15 | AR144: =COUNTIF(W144:AL144,"В") -> 8 | AS144: =COUNTA(W144:AL144) -> 16 | AT144: =V145+AP145 -> 172.5 | AW144: =V146+AP146 -> 0 | AY144: =COUNTIF((D144:R144),"В")+COUNTIF((W144:AL144),"В") -> 16 | AZ144: =$BC$6-AQ144-AY144 -> 0 | BA144: 0 | BB144: 0 | BC144: =AQ144+AY144-$BC$6 -> 0
F145: 11.5 | G145: 11.5 | J145: 11.5 | K145: 11.5 | N145: 11.5 | O145: 11.5 | R145: 11.5 | S145: 0 | T145: 0 | U145: 0 | V145: =SUM(D145:R145) -> 80.5 | W145: 11.5 | Z145: 11.5 | AA145: 11.5 | AD145: 11.5 | AE145: 11.5 | AH145: 11.5 | AI145: 11.5 | AL145: 11.5 | AM145: 0 | AN145: 0 | AO145: 0 | AP145: =SUM(W145:AL145) -> 92
S146: 0 | T146: 0 | U146: 0 | V146: =SUM(D146:R146) -> 0 | AM146: 0 | AN146: 0 | AO146: 0 | AP146: =SUM(W146:AL146) -> 0
A147: 47 | B147: Чубса Р.В. Электрослесарь по обслуживанию и ремонту оборудования | C147: 66 | D147: В | E147: Я | F147: Я/Н | G147: Н/Я | H147: В | I147: Я | J147: Я/Н | K147: Н/Я | L147: В | M147: Я | N147: Я/Н | O147: Н/Я | P147: В | Q147: Я | R147: Я/Н | S147: 4 | T147: 4 | U147: 3 | V147: =SUM(S147:U147) -> 11 | W147: Н/Я | X147: В | Y147: Я | Z147: Я/Н | AA147: Н/Я | AB147: В | AC147: Я | AD147: Я/Н | AE147: Н/Я | AF147: В | AG147: Я | AH147: Я/Н | AI147: Н/Я | AJ147: В | AK147: Я | AL147: Я/Н | AM147: 4 | AN147: 4 | AO147: 4 | AP147: =SUM(AM147:AO147) -> 12 | AQ147: =COUNTA((D148:R148),(W148:AL148)) -> 23 | AR147: =COUNTIF(W147:AL147,"В") -> 4 | AS147: =COUNTA(W147:AL147) -> 16 | AT147: =V148+AP148 -> 176.5 | AW147: =V149+AP149 -> 54.5 | AY147: =COUNTIF((D147:R147),"В")+COUNTIF((W147:AL147),"В") -> 8 | AZ147: =$BC$6-AQ147-AY147 -> 0 | BA147: 0 | BB147: 0 | BC147: =AQ147+AY147-$BC$6 -> 0
E148: 11.5 | F148: 4 | G148: 7.5 | I148: 11.5 | J148: 4 | K148: 7.5 | M148: 11.5 | N148: 4 | O148: 7.5 | Q148: 11.5 | R148: 4 | S148: 0 | T148: 0 | U148: 0 | V148: =SUM(D148:R148) -> 84.5 | W148: 7.5 | Y148: 11.5 | Z148: 4 | AA148: 7.5 | AC148: 11.5 | AD148: 4 | AE148: 7.5 | AG148: 11.5 | AH148: 4 | AI148: 7.5 | AK148: 11.5 | AL148: 4 | AM148: 0 | AN148: 0 | AO148: 0 | AP148: =SUM(W148:AL148) -> 92
F149: 2 | G149: 5.5 | J149: 2 | K149: 5.5 | N149: 2 | O149: 5.5 | R149: 2 | S149: 0 | T149: 0 | U149: 0 | V149: =SUM(D149:R149) -> 24.5 | W149: 5.5 | Z149: 2 | AA149: 5.5 | AD149: 2 | AE149: 5.5 | AH149: 2 | AI149: 5.5 | AL149: 2 | AM149: 0 | AN149: 0 | AO149: 0 | AP149: =SUM(W149:AL149) -> 30
A150: 48 | B150: Шатайкин Е.А. Слесарь по обслуживанию и ремонту оборудования | C150: 161 | D150: Я | E150: Я/Н | F150: Н/Я | G150: В | H150: Я | I150: Я/Н | J150: Н/Я | K150: В | L150: Я | M150: Я/Н | N150: Н/Я | O150: В | P150: Я | Q150: Я/Н | R150: Н/Я | S150: 4 | T150: 4 | U150: 4 | V150: =SUM(S150:U150) -> 12 | W150: В | X150: Я | Y150: Я/Н | Z150: Н/Я | AA150: В | AB150: Я | AC150: Я/Н | AD150: Н/Я | AE150: В | AF150: Я | AG150: Я/Н | AH150: Н/Я | AI150: В | AJ150: Я | AK150: Я/Н | AL150: Н/Я | AM150: 4 | AN150: 4 | AO150: 4 | AP150: =SUM(AM150:AO150) -> 12 | AQ150: =COUNTA((D151:R151),(W151:AL151)) -> 24 | AR150: =COUNTIF(W150:AL150,"В") -> 4 | AS150: =COUNTA(W150:AL150) -> 16 | AT150: =V151+AP151 -> 184 | AW150: =V152+AP152 -> 60 | AY150: =COUNTIF((D150:R150),"В")+COUNTIF((W150:AL150),"В") -> 7 | AZ150: =$BC$6-AQ150-AY150 -> 0 | BA150: 0 | BB150: 0 | BC150: =AQ150+AY150-$BC$6 -> 0
D151: 11.5 | E151: 4 | F151: 7.5 | H151: 11.5 | I151: 4 | J151: 7.5 | L151: 11.5 | M151: 4 | N151: 7.5 | P151: 11.5 | Q151: 4 | R151: 7.5 | S151: 0 | T151: 0 | U151: 0 | V151: =SUM(D151:R151) -> 92 | X151: 11.5 | Y151: 4 | Z151: 7.5 | AB151: 11.5 | AC151: 4 | AD151: 7.5 | AF151: 11.5 | AG151: 4 | AH151: 7.5 | AJ151: 11.5 | AK151: 4 | AL151: 7.5 | AM151: 0 | AN151: 0 | AO151: 0 | AP151: =SUM(W151:AL151) -> 92
E152: 2 | F152: 5.5 | I152: 2 | J152: 5.5 | M152: 2 | N152: 5.5 | Q152: 2 | R152: 5.5 | S152: 0 | T152: 0 | U152: 0 | V152: =SUM(D152:R152) -> 30 | Y152: 2 | Z152: 5.5 | AC152: 2 | AD152: 5.5 | AG152: 2 | AH152: 5.5 | AK152: 2 | AL152: 5.5 | AM152: 0 | AN152: 0 | AO152: 0 | AP152: =SUM(W152:AL152) -> 30
A153: 49 | B153: Швец Н.П. Слесарь по обслуживанию и ремонту оборудования | C153: 79 | D153: Я | E153: МО | F153: Я | G153: Я/Н | H153: Н/Я | I153: В | J153: Я | K153: Я/Н | L153: Н/Я | M153: В | N153: Я | O153: Я/Н | P153: Н/Я | Q153: В | R153: Я | S153: 5 | T153: 3 | U153: 3 | V153: =SUM(S153:U153) -> 11 | W153: Я/Н | X153: Н/Я | Y153: В | Z153: Я | AA153: Я/Н | AB153: Н/Я | AC153: В | AD153: Я | AE153: Я/Н | AF153: Н/Я | AG153: В | AH153: Я | AI153: Я/Н | AJ153: Н/Я | AK153: В | AL153: ДО | AM153: 3 | AN153: 4 | AO153: 4 | AP153: =SUM(AM153:AO153) -> 11 | AQ153: =COUNTA((D154:R154),(W154:AL154)) -> 22 | AR153: =COUNTIF(W153:AL153,"В") -> 4 | AS153: =COUNTA(W153:AL153) -> 16 | AT153: =V154+AP154 -> 172.5 | AW153: =V155+AP155 -> 52.5 | AY153: =COUNTIF((D153:R153),"В")+COUNTIF((W153:AL153),"В") -> 7 | AZ153: =$BC$6-AQ153-AY153 -> 2 | BA153: 16 | BB153: 2 | BC153: =AQ153+AY153-$BC$6 -> -2
D154: 11.5 | F154: 11.5 | G154: 4 | H154: 7.5 | J154: 11.5 | K154: 4 | L154: 7.5 | N154: 11.5 | O154: 4 | P154: 7.5 | R154: 11.5 | S154: 0 | T154: 0 | U154: 0 | V154: =SUM(D154:R154) -> 92 | W154: 4 | X154: 7.5 | Z154: 11.5 | AA154: 4 | AB154: 7.5 | AD154: 11.5 | AE154: 4 | AF154: 7.5 | AH154: 11.5 | AI154: 4 | AJ154: 7.5 | AM154: 0 | AN154: 0 | AO154: 0 | AP154: =SUM(W154:AL154) -> 80.5 | BI154: 2019 г
G155: 2 | H155: 5.5 | K155: 2 | L155: 5.5 | O155: 2 | P155: 5.5 | S155: 0 | T155: 0 | U155: 0 | V155: =SUM(D155:R155) -> 22.5 | W155: 2 | X155: 5.5 | AA155: 2 | AB155: 5.5 | AE155: 2 | AF155: 5.5 | AI155: 2 | AJ155: 5.5 | AM155: 0 | AN155: 0 | AO155: 0 | AP155: =SUM(W155:AL155) -> 30
A156: 50 | B156: Шелыгин Н.Д. Слесарь по обслуживанию и ремонту оборудования | C156: 161 | D156: Я/Н | E156: Н/Я | F156: В | G156: Я | H156: Я/Н | I156: Н/Я | J156: В | K156: Я | L156: Я/Н | M156: Н/Я | N156: В | O156: Я | P156: Я/Н | Q156: Н/Я | R156: В | S156: 3 | T156: 4 | U156: 4 | V156: =SUM(S156:U156) -> 11 | W156: Я | X156: Я/Н | Y156: Н/Я | Z156: В | AA156: Я | AB156: Я/Н | AC156: Н/Я | AD156: В | AE156: Я | AF156: Я/Н | AG156: Н/Я | AH156: В | AI156: Я | AJ156: Я/Н | AK156: Н/Я | AL156: В | AM156: 4 | AN156: 4 | AO156: 4 | AP156: =SUM(AM156:AO156) -> 12 | AQ156: =COUNTA((D157:R157),(W157:AL157)) -> 23 | AR156: =COUNTIF(W156:AL156,"В") -> 4 | AS156: =COUNTA(W156:AL156) -> 16 | AT156: =V157+AP157 -> 172.5 | AW156: =V158+AP158 -> 60 | AY156: =COUNTIF((D156:R156),"В")+COUNTIF((W156:AL156),"В") -> 8 | AZ156: =$BC$6-AQ156-AY156 -> 0 | BA156: 0 | BB156: 0 | BC156: =AQ156+AY156-$BC$6 -> 0 | BI156: 2019 г
D157: 4 | E157: 7.5 | G157: 11.5 | H157: 4 | I157: 7.5 | K157: 11.5 | L157: 4 | M157: 7.5 | O157: 11.5 | P157: 4 | Q157: 7.5 | S157: 0 | T157: 0 | U157: 0 | V157: =SUM(D157:R157) -> 80.5 | W157: 11.5 | X157: 4 | Y157: 7.5 | AA157: 11.5 | AB157: 4 | AC157: 7.5 | AE157: 11.5 | AF157: 4 | AG157: 7.5 | AI157: 11.5 | AJ157: 4 | AK157: 7.5 | AM157: 0 | AN157: 0 | AO157: 0 | AP157: =SUM(W157:AL157) -> 92
D158: 2 | E158: 5.5 | H158: 2 | I158: 5.5 | L158: 2 | M158: 5.5 | P158: 2 | Q158: 5.5 | S158: 0 | T158: 0 | U158: 0 | V158: =SUM(D158:R158) -> 30 | X158: 2 | Y158: 5.5 | AB158: 2 | AC158: 5.5 | AF158: 2 | AG158: 5.5 | AJ158: 2 | AK158: 5.5 | AM158: 0 | AN158: 0 | AO158: 0 | AP158: =SUM(W158:AL158) -> 30
A159: 51 | B159: Шураков Л.П. Слесарь по обслуживанию и ремонту оборудования | C159: 223 | D159: Н/Я | E159: В | F159: Я | G159: Я/Н | H159: Н/Я | I159: В | J159: Я | K159: Я/Н | L159: Н/Я | M159: В | N159: Я | O159: Я/Н | P159: Н/Я | Q159: В | R159: Я | S159: 4 | T159: 3 | U159: 4 | V159: =SUM(S159:U159) -> 11 | W159: Я/Н | X159: Н/Я | Y159: ОТ | Z159: ОТ | AA159: ОТ | AB159: ОТ | AC159: ОТ | AD159: ОТ | AE159: ОТ | AF159: ОТ | AG159: ОТ | AH159: ОТ | AI159: ОТ | AJ159: ОТ | AK159: ОТ | AL159: ОТ | AM159: 0 | AN159: 1 | AO159: 1 | AP159: =SUM(AM159:AO159) -> 2 | AQ159: =COUNTA((D160:R160),(W160:AL160)) -> 13 | AR159: =COUNTIF(W159:AL159,"В") -> 0 | AS159: =COUNTA(W159:AL159) -> 16 | AT159: =V160+AP160 -> 99.5 | AW159: =V161+AP161 -> 35.5 | AY159: =COUNTIF((D159:R159),"В")+COUNTIF((W159:AL159),"В") -> 4 | AZ159: =$BC$6-AQ159-AY159 -> 14 | BA159: 09 | BB159: 14 | BC159: =AQ159+AY159-$BC$6 -> -14
D160: 7.5 | F160: 11.5 | G160: 4 | H160: 7.5 | J160: 11.5 | K160: 4 | L160: 7.5 | N160: 11.5 | O160: 4 | P160: 7.5 | R160: 11.5 | S160: 0 | T160: 0 | U160: 0 | V160: =SUM(D160:R160) -> 88 | W160: 4 | X160: 7.5 | AM160: 0 | AN160: 0 | AO160: 0 | AP160: =SUM(W160:AL160) -> 11.5
D161: 5.5 | G161: 2 | H161: 5.5 | K161: 2 | L161: 5.5 | O161: 2 | P161: 5.5 | S161: 0 | T161: 0 | U161: 0 | V161: =SUM(D161:R161) -> 28 | W161: 2 | X161: 5.5 | AM161: 0 | AN161: 0 | AO161: 0 | AP161: =SUM(W161:AL161) -> 7.5
Z162: Руководитель
A163: Ответственное лицо | D163: Начальник ОП | P163: Громоздин И.А. | AF163: Начальник ОП | AU163: Громоздин И.А. | AZ163: 29 | BA163: 07 | BB163: 2020 г
E164: (должность) | K164: (подпись) | P164: расшифровка | AF164: (должность) | AM164: Подпись | AU164: расшифровка
X165: Работник кадровой службы | AF165: Специалист по персоналу | AU165: Синица С.К. | AZ165: 29 | BA165: 07 | BB165: 2020 г
AF166: (должность) | AM166: Подпись | AU166: расшифровка

Sheet условные обозначения (коды)
A1: Применяемые условные обозначения (коды)
A4: Я | B4: Продолжительность работы в дневное время | D4: Б | E4: Временная нетрудоспособность (кроме случаев, предусмотренных кодом "Т")
A5: Н | B5: Продолжительность работы в ночное время | D5: Т | E5: Временная нетрудоспособность без назначения пособия в случаях, предусмотренных законодательством
A6: РВ | B6: Продолжительность работы в выходные и нерабочие праздничные дни | D6: ЛЧ | E6: Сокращенная продолжительность рабочего времени против нормальной продолжительности рабочего дня в случаях, предусмотренных законодательством
A7: С | B7: Продолжительность сверхурочной работы | D7: ПВ | E7: Время вынужденного прогула в случае признания увольнения, перевода на другую работу или отстранения от работы незаконными с восстановлением на прежней работе
A8: ВМ | B8: Продолжительность работы вахтовым методом | D8: Г | E8: Невыходы на время исполнения государственных или общественных обязанностей согласно законодательству
A9: К | B9: Служебная командировка | D9: ПР | E9: Прогулы (отсутствие на рабочем месте без уважительных причин в течение времени, установленного законодательством)
A10: ПК | B10: Повышение квалификации с отрывом от работы | D10: НС | E10: Продолжительность работы в режиме неполного рабочего времени по инициативе работодателя в случаях, предусмотренных законодательством
A11: ПМ | B11: Повышение квалификации с отрывом от работы в другой местности | D11: В | E11: Выходные дни (еженедельный отпуск) и нерабочие праздничные дни
A12: ОТ | B12: Ежегодный основной оплачиваемый отпуск | D12: ОВ | E12: Дополнительные выходные дни (оплачиваемые)
A13: ОД | B13: Ежегодный дополнительный оплачиваемый отпуск | D13: НВ | E13: Дополнительные выходные дни (без сохранения заработной платы)
A14: У | B14: Дополнительный отпуск в связи с обучением с сохранением среднего заработка работникам, совмещающим работу с обучением | D14: ЗБ | E14: Забастовка (при условиях и в порядке, предусмотренных законом)
A15: УВ | B15: Сокращенная продолжительность рабочего времени для обучающихся без отрыва от производства с частичным сохранением заработной платы | D15: НН | E15: Неявки по невыясненным причинам (до выяснения обстоятельств)
A16: УД | B16: Дополнительный отпуск в связи с обучением без сохранения заработной платы | D16: РП | E16: Время простоя по вине работодателя
A17: Р | B17: Отпуск по беременности и родам (отпуск в связи с усыновлением новорожденного ребенка) | D17: НП | E17: Время простоя по причинам, не зависящим от работодателя и работника
A18: ОЖ | B18: Отпуск по уходу за ребенком до достижения им возраста трех лет | D18: ВП | E18: Время простоя по вине работника
A19: ДО | B19: Отпуск без сохранения заработной платы, предоставленный работнику по разрешению работодателя | D19: НО | E19: Отстранение от работы (недопущение к работе) с оплатой (пособием) в соответствии с законодательством
A20: ОЗ | B20: Отпуск без сохранения заработной платы при условиях, предусмотренных действующим законодательством Российской Федерации | D20: НБ | E20: Отстранение от работы (недопущение к работе) по причинам, предусмотренным законодательством, без начисления заработной платы
A21: ДБ | B21: Ежегодный дополнительный отпуск без сохранения заработной платы | D21: НЗ | E21: Время приостановки работы в случае задержки выплаты заработной платы

Sheet ЯНВАРЬ
B2: ТАБЕЛЬ
B3: УЧЕТА РАБОЧЕГО ВРЕМЕНИ
B4: работников
V5: за | W5: январь | Z5: 2021
A7: Номер по порядку | B7: ФИО | C7: Таб № | G7: =DATE($Z$5,MONTH(DATEVALUE($W$5&"1")),1) -> 2021-01-01 | H7: =G7+1 -> 2021-01-02 | I7: =H7+1 -> 2021-01-03 | J7: 2021-01-04 | K7: 2021-01-05 | L7: 2021-01-06 | M7: 2021-01-07 | N7: 2021-01-08 | O7: 2021-01-09 | P7: 2021-01-10 | Q7: 2021-01-11 | R7: 2021-01-12 | S7: 2021-01-13 | T7: 2021-01-14 | U7: 2021-01-15 | V7: 2021-01-16 | W7: 2021-01-17 | X7: 2021-01-18 | Y7: 2021-01-19 | Z7: 2021-01-20 | AA7: 2021-01-21 | AB7: 2021-01-22 | AC7: 2021-01-23 | AD7: 2021-01-24 | AE7: 2021-01-25 | AF7: 2021-01-26 | AG7: 2021-01-27 | AH7: 2021-01-28 | AI7: =AH7+1 -> 2021-01-29 | AJ7: 2021-01-30 | AK7: 2021-01-31 | AL7: Итого отработанно за месяц | AT7: Кол-во неявок, дней (часов)
G8: =DAY(G7) -> 1900-01-01 | H8: =DAY(H7) -> 1900-01-02 | I8: 1900-01-03 | J8: 1900-01-04 | K8: 1900-01-05 | L8: 1900-01-06 | M8: 1900-01-07 | N8: 1900-01-08 | O8: 1900-01-09 | P8: 1900-01-10 | Q8: 1900-01-11 | R8: 1900-01-12 | S8: 1900-01-13 | T8: 1900-01-14 | U8: 1900-01-15 | V8: 1900-01-16 | W8: 1900-01-17 | X8: 1900-01-18 | Y8: 1900-01-19 | Z8: 1900-01-20 | AA8: 1900-01-21 | AB8: 1900-01-22 | AC8: 1900-01-23 | AD8: 1900-01-24 | AE8: 1900-01-25 | AF8: 1900-01-26 | AG8: 1900-01-27 | AH8: 1900-01-28 | AI8: =IF(MONTH(AI7)>MONTH(G7),"",DAY(AI7)) -> 1900-01-29 | AJ8: =IF(MONTH(AJ7)>MONTH(H7),"",DAY(AJ7)) -> 1900-01-30 | AK8: =IF(MONTH(AK7)>MONTH(I7),"",DAY(AK7)) -> 1900-01-31 | AL8: часов | AR8: дней
AL9: Всего | AM9: из них | AR9: код | AS9: кол-во | AT9: код | AU9: к-во дней (часов)
AM10: в выходные и праздничные дни | AP10: ночные, "Н" | AQ10: сверурочно, "С"
AM11: всего | AN11: по графику | AO11: по прика-зу, "РВ"
D12: отработано | E12: букв. код | AR12: К | AS12: =COUNTIF(G12:AK17,"К") -> 0 | AT12: ОТ, ОД | AU12: =COUNTIF(G12:AK17,"ОТ")+COUNTIF(G12:AK17,"ОД") -> 0
E13: кол-во часов | AT13: ДО | AU13: =COUNTIF(G12:AK17,"ДО") -> 0
E14: из них | F14: букв. код | AL14: =IF((SUM(SUMIF(G12:AK17,"Я",G13:AK17),SUMIF(G12:AK17,"РВ",G13:AK17),SUMIF(G12:AK17,"С",G13:AK17)))>0,SUM(SUMIF(G12:AK17,"Я",G13:AK17),SUMIF(G12:AK17,"РВ",G13:AK17)),0) -> 0 | AM14: =SUMIF(G12:N17,"Я",G13:N17)+SUMIF(G12:AK17,"РВ",G13:AK17) -> 0 | AN14: =AM14-AO14 -> 0 | AO14: =SUMIF(G12:AK12,"РВ",G13:AK13)+SUMIF(G14:AK14,"РВ",G15:AK15)+SUMIF(G16:AK16,"РВ",G17:AK17) -> 0 | AP14: =SUMIF(G12:AK12,"Н",G13:AK13)+SUMIF(G14:AK14,"Н",G15:AK15)+SUMIF(G16:AK16,"Н",G17:AK17) -> 0 | AQ14: =SUMIF(G12:AK12,"С",G13:AK13)+SUMIF(G14:AK14,"С",G15:AK15)+SUMIF(G16:AK16,"С",G17:AK17) -> 0 | AT14: МО | AU14: =COUNTIF(G12:AK17,"МО") -> 0
F15: кол-во часов
F16: букв. код | AT16: Б | AU16: =COUNTIF(G12:AK17,"Б") -> 0
F17: кол-во часов
C18: график работника | AL18: =SUM(G18:AK18) -> 0 | AV18: х
C19: индивид. норма раб. времени | G19: =IF(ISNUMBER(IF(G12="Я",G13,G12)),G18,0) -> 0 | H19: =IF(ISNUMBER(IF(H12="Я",H13,H12)),H18,0) -> 0 | I19: 0 | J19: 0 | K19: 0 | L19: 0 | M19: 0 | N19: 0 | O19: 0 | P19: 0 | Q19: 0 | R19: 0 | S19: 0 | T19: 0 | U19: 0 | V19: 0 | W19: 0 | X19: 0 | Y19: 0 | Z19: 0 | AA19: 0 | AB19: 0 | AC19: 0 | AD19: 0 | AE19: 0 | AF19: 0 | AG19: 0 | AH19: 0 | AI19: 0 | AJ19: 0 | AK19: 0 | AL19: =SUM(G19:AK19) -> 0 | AM19: Переработка/ недоработка ЗА МЕСЯЦ | AR19: =SUMIF(G12:AK17,"Я",G13:AK17)-AL19-AQ14 -> 0 | AV19: х
Y21: Руководитель | AC21: Руководитель
Y22: подразделения | AC22: подразделения | AS22: г.
AC23: (должность) | AG23: (подпись) | AL23: (расшифровка) | AP23: (дата)
Y24: Специалист | AC24: Специалист
Y25: кадровой службы | AC25: по персоналу | AS25: г.
AG26: (должность) | AL26: (расшифровка) | AP26: (дата)

Sheet ФЕВРАЛЬ
B2: ТАБЕЛЬ
B3: УЧЕТА РАБОЧЕГО ВРЕМЕНИ
B4: работников
V5: за | W5: ФЕВРАЛЬ | Z5: 2021
A7: Номер по порядку | B7: ФИО | C7: Таб № | G7: =DATE($Z$5,MONTH(DATEVALUE($W$5&"1")),1) -> 2021-02-01 | H7: =G7+1 -> 2021-02-02 | I7: =H7+1 -> 2021-02-03 | J7: 2021-02-04 | K7: 2021-02-05 | L7: 2021-02-06 | M7: 2021-02-07 | N7: 2021-02-08 | O7: 2021-02-09 | P7: 2021-02-10 | Q7: 2021-02-11 | R7: 2021-02-12 | S7: 2021-02-13 | T7: 2021-02-14 | U7: 2021-02-15 | V7: 2021-02-16 | W7: 2021-02-17 | X7: 2021-02-18 | Y7: 2021-02-19 | Z7: 2021-02-20 | AA7: 2021-02-21 | AB7: 2021-02-22 | AC7: 2021-02-23 | AD7: 2021-02-24 | AE7: 2021-02-25 | AF7: 2021-02-26 | AG7: 2021-02-27 | AH7: 2021-02-28 | AI7: =AH7+1 -> 2021-03-01 | AJ7: 2021-03-02 | AK7: 2021-03-03 | AL7: Итого отработанно за месяц | AT7: Кол-во неявок, дней (часов)
G8: =DAY(G7) -> 1900-01-01 | H8: =DAY(H7) -> 1900-01-02 | I8: 1900-01-03 | J8: 1900-01-04 | K8: 1900-01-05 | L8: 1900-01-06 | M8: 1900-01-07 | N8: 1900-01-08 | O8: 1900-01-09 | P8: 1900-01-10 | Q8: 1900-01-11 | R8: 1900-01-12 | S8: 1900-01-13 | T8: 1900-01-14 | U8: 1900-01-15 | V8: 1900-01-16 | W8: 1900-01-17 | X8: 1900-01-18 | Y8: 1900-01-19 | Z8: 1900-01-20 | AA8: 1900-01-21 | AB8: 1900-01-22 | AC8: 1900-01-23 | AD8: 1900-01-24 | AE8: 1900-01-25 | AF8: 1900-01-26 | AG8: 1900-01-27 | AH8: 1900-01-28 | AI8: =IF(MONTH(AI7)>MONTH(G7),"",DAY(AI7)) ->  | AJ8: =IF(MONTH(AJ7)>MONTH(H7),"",DAY(AJ7)) ->  | AK8: =IF(MONTH(AK7)>MONTH(I7),"",DAY(AK7)) ->  | AL8: часов | AR8: дней
AL9: Всего | AM9: из них | AR9: код | AS9: кол-во | AT9: код | AU9: к-во дней (часов)
AM10: в выходные и праздничные дни | AP10: ночные, "Н" | AQ10: сверурочно, "С"
AM11: всего | AN11: по графику | AO11: по прика-зу, "РВ"
D12: отработано | E12: букв. код | AR12: К | AS12: =COUNTIF(G12:AK17,"К") -> 0 | AT12: ОТ, ОД | AU12: =COUNTIF(G12:AK17,"ОТ")+COUNTIF(G12:AK17,"ОД") -> 0
E13: кол-во часов | AT13: ДО | AU13: =COUNTIF(G12:AK17,"ДО") -> 0
E14: из них | F14: букв. код | AL14: =IF((SUM(SUMIF(G12:AK17,"Я",G13:AK17),SUMIF(G12:AK17,"РВ",G13:AK17),SUMIF(G12:AK17,"С",G13:AK17)))>0,SUM(SUMIF(G12:AK17,"Я",G13:AK17),SUMIF(G12:AK17,"РВ",G13:AK17)),0) -> 0 | AM14: =SUMIF(AC12:AC17,"Я",AC13:AC17)+SUMIF(G12:AK17,"РВ",G13:AK17) -> 0 | AN14: =AM14-AO14 -> 0 | AO14: =SUMIF(G12:AK12,"РВ",G13:AK13)+SUMIF(G14:AK14,"РВ",G15:AK15)+SUMIF(G16:AK16,"РВ",G17:AK17) -> 0 | AP14: =SUMIF(G12:AK12,"Н",G13:AK13)+SUMIF(G14:AK14,"Н",G15:AK15)+SUMIF(G16:AK16,"Н",G17:AK17) -> 0 | AQ14: =SUMIF(G12:AK12,"С",G13:AK13)+SUMIF(G14:AK14,"С",G15:AK15)+SUMIF(G16:AK16,"С",G17:AK17) -> 0 | AT14: МО | AU14: =COUNTIF(G12:AK17,"МО") -> 0
F15: кол-во часов
F16: букв. код | AT16: Б | AU16: =COUNTIF(G12:AK17,"Б") -> 0
F17: кол-во часов
C18: график работника | AL18: =SUM(G18:AK18) -> 0 | AV18: х
C19: индивид. норма раб. времени | G19: =IF(ISNUMBER(IF(G12="Я",G13,G12)),G18,0) -> 0 | H19: =IF(ISNUMBER(IF(H12="Я",H13,H12)),H18,0) -> 0 | I19: 0 | J19: 0 | K19: 0 | L19: 0 | M19: 0 | N19: 0 | O19: 0 | P19: 0 | Q19: 0 | R19: 0 | S19: 0 | T19: 0 | U19: 0 | V19: 0 | W19: 0 | X19: 0 | Y19: 0 | Z19: 0 | AA19: 0 | AB19: 0 | AC19: 0 | AD19: 0 | AE19: 0 | AF19: 0 | AG19: 0 | AH19: 0 | AI19: 0 | AJ19: 0 | AK19: 0 | AL19: =SUM(G19:AK19) -> 0 | AM19: Переработка/ недоработка ЗА МЕСЯЦ | AR19: =SUMIF(G12:AK17,"Я",G13:AK17)-AL19-AQ14 -> 0 | AV19: х
Y21: Руководитель | AC21: Руководитель
Y22: подразделения | AC22: подразделения | AS22: г.
AC23: (должность) | AG23: (подпись) | AL23: (расшифровка) | AP23: (дата)
Y24: Специалист | AC24: Специалист
Y25: кадровой службы | AC25: по персоналу | AS25: г.
AG26: (должность) | AL26: (расшифровка) | AP26: (дата)

Sheet Лист1 (hidden)
A1: Изменение оплаты труда
A3: Изменение оплаты труда
